Workbook

Sheet Notation
B2: Cumulative Losses | H2: Age-to-Age Factors | L2: Notation
B3: AY | C3: 1 | D3: =C3+1 -> 2 | E3: =D3+1 -> 3 | H3: AY | I3: 1 | J3: =I3+1 -> 2 | L3: AY | M3: 1 | N3: =M3+1 -> 2
B4: 1981 | C4: 5012 | D4: 8269 | E4: 10907 | H4: 1981 | I4: =D4/C4 -> 1.649840383 | J4: =E4/D4 -> 1.319022856 | L4: 1981 | M4: F(1981,1) | N4: F(1981,2)
B5: =B4+1 -> 1982 | C5: 106 | D5: 4285 | H5: =H4+1 -> 1982 | I5: =D5/C5 -> 40.4245283 | L5: 1982 | M5: F(1982,1)
B6: =B5+1 -> 1983 | C6: 3410
H7: Mean | I7: =AVERAGE(I4:I5) -> 21.03718434 | J7: =AVERAGE(J4:J5) -> 1.319022856 | L7: Mean | M7: F(1) | N7: F(2)
B8: Notation
B9: AY | C9: 1 | D9: =C9+1 -> 2 | E9: =D9+1 -> 3
B10: 1981 | C10: c(1981,1) | D10: c(1981,2) | E10: c(1981,3)
B11: 1982 | C11: c(1982,1) | D11: c(1982,2)
B12: 1983 | C12: c(1983,1)
B15: Incremental Losses
B16: AY | C16: 1 | D16: 2 | E16: 3
B17: =B4 -> 1981 | C17: 5012 | D17: =D4-C4 -> 3257 | E17: =E4-D4 -> 2638
B18: 1982 | C18: 106 | D18: =D5-C5 -> 4179
B19: 1983 | C19: 3410
B21: Notation
B22: AY | C22: 1 | D22: =C22+1 -> 2 | E22: =D22+1 -> 3
B23: 1981 | C23: q(1981,1) | D23: q(1981,2) | E23: q(1981,3)
B24: 1982 | C24: q(1982,1) | D24: q(1982,2)
B25: 1983 | C25: q(1983,1)

Sheet Mack Exercises
A1: Slide Set II
A2: Chain-Ladder Model
C5: Cumulative Losses
C6: AY | D6: 1 | E6: =D6+1 -> 2 | F6: =E6+1 -> 3 | G6: =F6+1 -> 4 | H6: =G6+1 -> 5 | Q6: Incurred Losses | R6: LDF | S6: Ultimate | T6: Reserve
C7: 1981 | D7: 5012 | E7: 8269 | F7: 10907 | G7: 11805 | H7: 13539 | Q7: =H7 -> 13539 | R7: 1 | S7: =R7*Q7 -> 13539 | T7: =S7-Q7 -> 0
C8: =C7+1 -> 1982 | D8: 106 | E8: 4285 | F8: 5396 | G8: 10666 | Q8: =G8 -> 10666 | R8: =HLOOKUP(1986-C8,$D$22:$L$30,9) -> 1.146886912 | S8: =R8*Q8 -> 12232.69581 | T8: =S8-Q8 -> 1566.695807
C9: =C8+1 -> 1983 | D9: 3410 | E9: 8992 | F9: 13873 | Q9: =F9 -> 13873 | R9: =HLOOKUP(1986-C9,$D$22:$L$30,9) -> 1.580794689 | S9: =R9*Q9 -> 21930.36471 | T9: =S9-Q9 -> 8057.364714
C10: =C9+1 -> 1984 | D10: 5655 | E10: 11555 | Q10: =E10 -> 11555 | R10: =HLOOKUP(1986-C10,$D$22:$L$30,9) -> 2.213963637 | S10: =R10*Q10 -> 25582.34982 | T10: =S10-Q10 -> 14027.34982
C11: =C10+1 -> 1985 | D11: 1092 | Q11: =D11 -> 1092 | R11: =HLOOKUP(1986-C11,$D$22:$L$30,9) -> 5.167059885 | S11: =R11*Q11 -> 5642.429394 | T11: =S11-Q11 -> 4550.429394
B12: Sum for Wt-> | C12: SUM | D12: =SUM(D7:D10) -> 14183 | E12: =SUM(E7:E9) -> 21546 | F12: =SUM(F7:F8) -> 16303 | G12: =SUM(G7) -> 11805
C13: Incremental Losses
C14: AY | D14: 1 | E14: 2 | F14: 3 | G14: 4 | H14: 5
C15: =C7 -> 1981 | D15: =D7 -> 5012 | E15: =E7-D7 -> 3257 | F15: =F7-E7 -> 2638 | G15: 898 | H15: 1734
C16: 1982 | D16: 106 | E16: 4179 | F16: 1111 | G16: 5270
C17: 1983 | D17: 3410 | E17: 5582 | F17: 4881
C18: =C10 -> 1984 | D18: =D10 -> 5655 | E18: 5900
C19: =C11 -> 1985 | D19: =D11 -> 1092
C21: Age-toAge factors | R21: Factor Squared Deviations
C22: AY | D22: 1 | E22: =D22+1 -> 2 | F22: =E22+1 -> 3 | G22: =F22+1 -> 4 | H22: =G22+1 -> 5 | R22: AY | S22: 1 | T22: =S22+1 -> 2 | U22: =T22+1 -> 3 | V22: =U22+1 -> 4
A23: Slide II.6 | C23: 1981 | D23: =E7/D7 -> 1.649840383 | E23: =F7/E7 -> 1.319022856 | F23: =G7/F7 -> 1.082332447 | G23: =H7/G7 -> 1.146886912 | R23: 1981 | S23: =(D23-D$28)^2 -> 0.4678696817 | T23: =(E23-E$28)^2 -> 0.006644781068 | U23: =(F23-F$28)^2 -> 0.08761767458 | V23: =(G23-G$28)^2 -> 0
C24: =C23+1 -> 1982 | D24: =E8/D8 -> 40.4245283 | E24: =F8/E8 -> 1.259276546 | F24: =G8/F8 -> 1.97664937 | R24: =R23+1 -> 1982 | S24: =(D24-D$28)^2 -> 1450.899744 | T24: =(E24-E$28)^2 -> 0.01995490657 | U24: =(F24-F$28)^2 -> 0.3579797553
C25: =C24+1 -> 1983 | D25: =E9/D9 -> 2.636950147 | E25: =F9/E9 -> 1.542815836 | R25: =R24+1 -> 1983 | S25: =(D25-D$28)^2 -> 0.09186946595 | T25: =(E25-E$28)^2 -> 0.02024287372
C26: =C25+1 -> 1984 | D26: =E10/D10 -> 2.043324492 | R26: =R25+1 -> 1984 | S26: =(D26-D$28)^2 -> 0.08440529431
A27: Answers to:
A28: Slide II.6 | C28: WAD | D28: =SUM(E7:E11)/SUMIF(E7:E11,">0",D7:D11) -> 2.333850384 | E28: =SUM(F7:F11)/SUMIF(F7:F11,">0",E7:E11) -> 1.400538383 | F28: =SUM(G7:G11)/SUMIF(G7:G11,">0",F7:F11) -> 1.378335276 | G28: =SUM(H7:H11)/SUMIF(H7:H11,">0",G7:G11) -> 1.146886912 | Q28: (a) | R28: Weighted Deviations | S28: =SUMPRODUCT(D7:D10,S23:S26) -> 156930.9226 | T28: =SUMPRODUCT(E7:E9,T23:T25) -> 322.4763898 | U28: =SUMPRODUCT(F7:F8,U23:U24) -> 2887.304736 | V28: =SUMPRODUCT(G7,V23) -> 0
C29: SAD | D29: =AVERAGE(D23:D26) -> 11.68866083 | E29: =AVERAGE(E23:E26) -> 1.37370508 | F29: =AVERAGE(F23:F26) -> 1.529490908 | G29: =AVERAGE(G23:G26) -> 1.146886912 | Q29: (b) | R29: N-K-1 | S29: =COUNT(S23:S26)-1 -> 3 | T29: =COUNT(T23:T26)-1 -> 2 | U29: =COUNT(U23:U26)-1 -> 1 | V29: =COUNT(V23:V26)-1 -> 0
C30: ATU | D30: =E30*D28 -> 5.167059885 | E30: =F30*E28 -> 2.213963637 | F30: =G30*F28 -> 1.580794689 | G30: =G29 -> 1.146886912 | Q30: ©=(a)/(b) | R30: alpha^2 | S30: =S28/S29 -> 52310.30752 | T30: =T28/T29 -> 161.2381949 | U30: =U28/U29 -> 2887.304736 | V30: =MIN(T30:U30) -> 161.2381949
C32: Unweighted Squared deviation of Age-toAge factors
C33: AY | D33: 1 | E33: =D33+1 -> 2 | F33: =E33+1 -> 3 | G33: =F33+1 -> 4 | H33: =G33+1 -> 5
C34: 1981 | D34: =(D23-D$29)^2 -> 100.777916 | E34: =(E23-E$29)^2 -> 0.00299014553 | F34: =(F23-F$29)^2 -> 0.1999506896 | G34: =(G23-G$29)^2 -> 0
C35: =C34+1 -> 1982 | D35: =(D24-D$29)^2 -> 825.7500793 | E35: =(E24-E$29)^2 -> 0.01309388928 | F35: =(F24-F$29)^2 -> 0.1999506896
C36: =C35+1 -> 1983 | D36: =(D25-D$29)^2 -> 81.93346631 | E36: =(E25-E$29)^2 -> 0.02859844803
C37: =C36+1 -> 1984 | D37: =(D26-D$29)^2 -> 93.0325131
C39: N-d-1 | D39: =COUNT(D34:D37)-1 -> 3 | E39: =COUNT(E34:E37)-1 -> 2 | F39: =COUNT(F34:F37)-1 -> 1
C40: Avg Var | D40: =SUM(D34:D37)/D39 -> 367.1646582 | E40: =SUM(E34:E37)/E39 -> 0.02234124142 | F40: =SUM(F34:F37)/F39 -> 0.3999013792
C41: Avg SD | D41: =SQRT(D40) -> 19.16154112 | E41: =SQRT(E40) -> 0.1494698679 | F41: =SQRT(F40) -> 0.6323775607
C43: Weights
C44: AY | D44: 1 | E44: =D44+1 -> 2 | F44: =E44+1 -> 3 | G44: =F44+1 -> 4 | H44: =G44+1 -> 5
C45: 1981 | D45: =D7 -> 5012 | E45: =E7 -> 8269 | F45: =F7 -> 10907 | G45: =G7 -> 11805
C46: =C45+1 -> 1982 | D46: =D8 -> 106 | E46: =E8 -> 4285 | F46: =F8 -> 5396
C47: =C46+1 -> 1983 | D47: =D9 -> 3410 | E47: =E9 -> 8992
C48: =C47+1 -> 1984 | D48: =D10 -> 5655
C51: Sum Weights | D51: =SUM(D45:D48) -> 14183 | E51: =SUM(E45:E48) -> 21546 | F51: =SUM(F45:F48) -> 16303 | G51: =SUM(G45:G48) -> 11805
C52: Weighted LDF | D52: =D28 -> 2.333850384 | E52: =E28 -> 1.400538383 | F52: =F28 -> 1.378335276 | G52: =G28 -> 1.146886912
C55: Weighted Squared deviation of Age-toAge factors
C56: AY | D56: 1 | E56: =D56+1 -> 2 | F56: =E56+1 -> 3 | G56: =F56+1 -> 4 | H56: =G56+1 -> 5
C57: 1981 | D57: =D45*(D23-D$28)^2 -> 2344.962845 | E57: =E45*(E23-E$28)^2 -> 54.94569465 | F57: =F45*(F23-F$28)^2 -> 955.6459766 | G57: =G45*(G23-G$28)^2 -> 0
C58: =C57+1 -> 1982 | D58: =D46*(D24-D$28)^2 -> 153795.3729 | E58: =E46*(E24-E$28)^2 -> 85.50677463 | F58: =F46*(F24-F$28)^2 -> 1931.65876
C59: =C58+1 -> 1983 | D59: =D47*(D25-D$28)^2 -> 313.2748789 | E59: =E47*(E25-E$28)^2 -> 182.0239205
C60: =C59+1 -> 1984 | D60: =D48*(D26-D$28)^2 -> 477.3119393
C63: Sum Weights | D63: =D12 -> 14183 | E63: =E12 -> 21546 | F63: =F12 -> 16303
C64: SumSquared | D64: =SUM(D57:D60) -> 156930.9226 | E64: =SUM(E57:E60) -> 322.4763898 | F64: =SUM(F57:F60) -> 2887.304736
C65: Weighted Var | D65: =SUM(D57:D60)/D63 -> 11.06471991 | E65: =SUM(E57:E60)/E63 -> 0.01496687969 | F65: =SUM(F57:F60)/F63 -> 0.1771026643
C66: Weighted SD | D66: =SQRT(D65) -> 3.326367375 | E66: =SQRT(E65) -> 0.1223391993 | F66: =SQRT(F65) -> 0.4208356738
C67: N-d-1 | D67: =D39 -> 3 | E67: =E39 -> 2 | F67: =F39 -> 1
A68: Slide II.6 | C68: σ2 | D68: =D64/D67 -> 52310.30752 | E68: =E64/E67 -> 161.2381949 | F68: =F64/F67 -> 2887.304736
C70: Estimated Cumulative Losses
C71: AY | D71: 1 | E71: =D71+1 -> 2 | F71: =E71+1 -> 3 | G71: =F71+1 -> 4 | H71: =G71+1 -> 5 | I71: Ultimate
C72: 1981 | H72: =H7 -> 13539 | I72: =H72 -> 13539
C73: =C72+1 -> 1982 | G73: =G8 -> 10666 | H73: =G73*G$52 -> 12232.69581 | I73: =H73 -> 12232.69581
C74: =C73+1 -> 1983 | F74: =F9 -> 13873 | G74: =F74*F$52 -> 19121.64528 | H74: =G74*G$52 -> 21930.36471 | I74: =H74 -> 21930.36471
C75: =C74+1 -> 1984 | E75: =E10 -> 11555 | F75: =E75*E$52 -> 16183.22102 | G75: =F75*F$52 -> 22305.9044 | H75: =G75*G$52 -> 25582.34982 | I75: =H75 -> 25582.34982
C76: =C75+1 -> 1985 | D76: =D11 -> 1092 | E76: =D76*D$52 -> 2548.56462 | F76: =E76*E$52 -> 3569.362571 | G76: =F76*F$52 -> 4919.778344 | H76: =G76*G$52 -> 5642.429394 | I76: =H76 -> 5642.429394
AC81: ppt
A84: Slide II.6 | C84: Computation of s12 for Development Age 1 | AD84: Computation of s12 for Development Age 1
C85: Accident Year (w) | D85: c(w,1) | E85: F(w,1) | F85: [F(w,1) - F(1)]2 | G85: Weighted Deviation | AD85: Accident Year (w) | AE85: c(w,1) | AF85: F(w,1) | AG85: [F(w,1) - F(1)]2 | AH85: Weighted Deviation
C86: -1 | D86: =C86-1 -> -2 | E86: =D86-1 -> -3 | F86: -4 | G86: -5 | AD86: (1) | AE86: (2) | AF86: (3) | AG86: (4) | AH86: (5)
F87: [(3) - 2.334]2 | G87: (2) x (4) | AG87: [(3) - 2.334]2 | AH87: (2) x (4)
C88: =C23 -> 1981 | D88: =D7 -> 5012 | E88: =D23 -> 1.649840383 | F88: =(E88-E$92)^2 -> 0.4678696817 | G88: =F88*D88 -> 2344.962845 | AD88: 1981 | AE88: 5012 | AF88: 1.649840383 | AG88: 0.4678696817 | AH88: 2344.962845
C89: =C24 -> 1982 | D89: =D8 -> 106 | E89: =D24 -> 40.4245283 | F89: =(E89-E$92)^2 -> 1450.899744 | G89: =F89*D89 -> 153795.3729 | AD89: 1982 | AE89: 106 | AF89: 40.4245283 | AG89: 1450.899744 | AH89: 153795.3729
C90: =C25 -> 1983 | D90: =D9 -> 3410 | E90: =D25 -> 2.636950147 | F90: =(E90-E$92)^2 -> 0.09186946595 | G90: =F90*D90 -> 313.2748789 | AD90: 1983 | AE90: 3410 | AF90: 2.636950147 | AG90: 0.09186946595 | AH90: 313.2748789
C91: =C26 -> 1984 | D91: =D10 -> 5655 | E91: =D26 -> 2.043324492 | F91: =(E91-E$92)^2 -> 0.08440529431 | G91: =F91*D91 -> 477.3119393 | AD91: 1984 | AE91: 5655 | AF91: 2.043324492 | AG91: 0.08440529431 | AH91: 477.3119393
C92: Weighted Average [F(1)] | E92: =D28 -> 2.333850384 | F92: S (5) = | G92: =SUM(G88:G91) -> 156930.9226 | AD92: Weighted Average [F(1)] | AF92: 2.333850384 | AG92: S (5) = | AH92: 156930.9226
F93: s12 = S(5) / (N-d-1) = | G93: =SUM(G88:G91)/(COUNT(G88:G91)-1) -> 52310.30752 | AG93: s12 = S(5) / (N-d-1) = | AH93: 52310.30752
A97: Slide II.10 | C97: Computation of Standard Error of Ultimate for AY 1985 | AD97: Computation of Standard Error of Ultimate for AY 1985 (w=5)
F98: Sigmad2 | I98: 1 1 | J98: Sigmad2 | AG98: sd2 | AJ98: 1 1 | AK98: Sigmad2
F99: ———— | I99: ———— + —— | J99: x ———— | AG99: ———— | AJ99: ———— + —— | AK99: x ————
C100: d | D100: F(d) | E100: Sigmad2 | F100: F(d)2 | G100: E[c(1,d)] | H100: SUM[c(j,d)] | I100: E[c(1,d)] SUM | J100: F(d)2 | AD100: d | AE100: F(d) | AF100: sd2 | AG100: F(d)2 | AH100: E[c(5,d)] | AI100: Sj[c(j,d)] | AJ100: E[c(1,d)] Sj[c(j,d)] | AK100: F(d)2
C101: -1 | D101: =C101-1 -> -2 | E101: =D101-1 -> -3 | F101: -4 | G101: -5 | H101: -6 | I101: -7 | J101: -8 | AD101: (1) | AE101: (2) | AF101: (3) | AG101: (4) | AH101: (5) | AI101: (6) | AJ101: (7) | AK101: (8)
F102: (3) / (2)^2 | I102: 1/(5) + 1/(6) | J102: (4) x (7) | AG102: (3) / (2)^2 | AJ102: 1/(5) + 1/(6) | AK102: (4) x (7)
C103: =C104+1 -> 4 | D103: =G28 -> 1.146886912 | E103: =V30 -> 161.2381949 | F103: =E103/D103^2 -> 122.5820087 | G103: =D104*G104 -> 4919.778344 | H103: =G12 -> 11805 | I103: =1/G103+1/H103 -> 0.0002879710586 | J103: =I103*F103 -> 0.03530007081 | AD103: =AD104+1 -> 4 | AE103: =T28 -> 322.4763898 | AF103: =AF30 -> 0 | AG103: =AF103/AE103^2 -> 0 | AH103: =AE104*AH104 ->  | AI103: =T12 -> 0 | AJ103: =1/AH103+1/AI103 ->  | AK103: =AJ103*AG103 -> 
C104: =C105+1 -> 3 | D104: =F28 -> 1.378335276 | E104: =U30 -> 2887.304736 | F104: =E104/D104^2 -> 1519.787544 | G104: =D105*G105 -> 3569.362571 | H104: =F12 -> 16303 | I104: =1/G104+1/H104 -> 0.0003415004721 | J104: =I104*F104 -> 0.519008164 | AD104: =AD105+1 -> 3 | AE104: =S28 -> 156930.9226 | AF104: =AE30 -> 0 | AG104: =AF104/AE104^2 -> 0 | AH104: =AE105*AH105 ->  | AI104: =S12 -> 0 | AJ104: =1/AH104+1/AI104 ->  | AK104: =AJ104*AG104 -> 
C105: =C106+1 -> 2 | D105: =E28 -> 1.400538383 | E105: =T30 -> 161.2381949 | F105: =E105/D105^2 -> 82.20115056 | G105: =D106*G106 -> 2548.56462 | H105: =E12 -> 21546 | I105: =1/G105+1/H105 -> 0.000438790057 | J105: =I105*F105 -> 0.03606904754 | AD105: =AD106+1 -> 2 | AE105: =R28 -> Weighted Deviations | AF105: =AD30 -> 0 | AG105: =AF105/AE105^2 ->  | AH105: =AE106*AH106 ->  | AI105: =R12 -> 0 | AJ105: =1/AH105+1/AI105 ->  | AK105: =AJ105*AG105 -> 
C106: 1 | D106: =D28 -> 2.333850384 | E106: =S30 -> 52310.30752 | F106: =E106/D106^2 -> 9603.758938 | G106: =D76 -> 1092 | H106: =D12 -> 14183 | I106: =1/G106+1/H106 -> 0.0009862578607 | J106: =I106*F106 -> 9.471782745 | AD106: 1 | AE106: =Q28 -> (a) | AF106: =AC30 -> 0 | AG106: =AF106/AE106^2 ->  | AH106: =Q76 -> 0 | AI106: =Q12 -> 0 | AJ106: =1/AH106+1/AI106 ->  | AK106: =AJ106*AG106 -> 
F107: U(w) = | G107: =G103*D103 -> 5642.429394 | I107: Sum = | J107: =SUM(J103:J106) -> 10.06216003 | AG107: U(w) = | AH107: =AH103*AE103 ->  | AJ107: Sd = | AK107: =SUM(AK103:AK106) -> 
I108: Var[R(w,d)2] = U(w)2 x Sum = | J108: =J107*(G107^2) -> 320349084.1 | AJ108: Var[R(w,d)] = U(w)2 Sd = | AK108: =AK107*(AH107^2) -> 
I109: SE = | J109: =SQRT(J108) -> 17898.29836 | AI109: SE = | AJ109: [ U(w)2 Sd ] 1/2= | AK109: =SQRT(AK108) -> 
B111: Components of Variance Calculation for Variance of Unpaid for 1 Year
B112: Age | C112: 1 | D112: =C112+1 -> 2 | E112: =D112+1 -> 3 | F112: =E112+1 -> 4
B113: Year | C113: =1986-C112 -> 1985 | D113: =1986-D112 -> 1984 | E113: =1986-E112 -> 1983 | F113: =1986-F112 -> 1982
B114: F(age) | C114: =D52 -> 2.333850384 | D114: =E52 -> 1.400538383 | E114: =F52 -> 1.378335276 | F114: =G52 -> 1.146886912
B115: σ2age | C115: =D68 -> 52310.30752 | D115: =E68 -> 161.2381949 | E115: =F68 -> 2887.304736 | F115: =MIN(D115:E115) -> 161.2381949
B116: σ2age / F(d)2 | C116: =C115/C114^2 -> 9603.758938 | D116: =D115/D114^2 -> 82.20115056 | E116: =E115/E114^2 -> 1519.787544 | F116: =F115/F114^2 -> 122.5820087
B117: Diagonal loss | C117: =VLOOKUP(C$113,$C$7:$Q$11,12) -> 1092 | D117: =VLOOKUP(D$113,$C$7:$Q$11,12) -> 11555 | E117: =VLOOKUP(E$113,$C$7:$Q$11,12) -> 13873 | F117: =VLOOKUP(F$113,$C$7:$Q$11,12) -> 10666
B118: SUM | C118: =D12 -> 14183 | D118: =E12 -> 21546 | E118: =F12 -> 16303 | F118: =G12 -> 11805
C123: Computation of Standard Error of Ultimate for AY 1983
F124: Sigma2 | I124: 1 1 | J124: Sigma2
F125: ———— | I125: ———— + —— | J125: x ————
C126: d | D126: f(d) | E126: Sigma2 | F126: f(d)2 | G126: E[c(1,d)] | H126: SUM[c(j,d)] | I126: E[c(1,d)] SUM | J126: f(d)2
C127: -1 | D127: =C127-1 -> -2 | E127: =D127-1 -> -3 | F127: -4 | G127: -5 | H127: -6 | I127: -7 | J127: -8
F128: (3) / (2)^2 | I128: 1/(5) + 1/(6) | J128: (4) x (7)
C129: =C103 -> 4 | D129: 1.146886912 | E129: 161.2381949 | F129: =E129/D129^2 -> 122.5820087 | G129: =G130*D130 -> 19121.64528 | H129: =H103 -> 11805 | I129: =1/G129+1/H129 -> 0.0001370066238 | J129: =I129*F129 -> 0.01679454715
C130: 3 | D130: 1.378335276 | E130: 2887.304736 | F130: =E130/D130^2 -> 1519.787544 | G130: =F9 -> 13873 | H130: =H104 -> 16303 | I130: =1/G130+1/H130 -> 0.0001334208663 | J130: =I130*F130 -> 0.2027713708
F131: U(w) = | G131: =G129*D129 -> 21930.36471 | I131: Sum = | J131: =SUM(J129:J130) -> 0.2195659179
I132: SE2 = R(w,d)2 x Sum = | J132: =J131*(G131^2) -> 105598229.4
I133: SE = | J133: =SQRT(J132) -> 10276.09991
A136: Slide II.12
C137: Computation of Standard Error of Ultimate for AY 1984 | AD137: Computation of Standard Error of Ultimate for AY 1984
F138: Sigmad2 | I138: 1 1 | J138: Sigmad2 | AG138: sd2 | AJ138: 1 1 | AK138: Sigmad2
F139: ———— | I139: ———— + —— | J139: x ———— | AG139: ———— | AJ139: ———— + —— | AK139: x ————
C140: d | D140: F(d) | E140: Sigmad2 | F140: F(d)2 | G140: E[c(1,d)] | H140: SUM[c(j,d)] | I140: E[c(1,d)] SUM | J140: F(d)2 | AD140: d | AE140: F(d) | AF140: sd2 | AG140: F(d)2 | AH140: E[c(5,d)] | AI140: Sj[c(j,d)] | AJ140: E[c(1,d)] Sj[c(j,d)] | AK140: F(d)2
C141: -1 | D141: =C141-1 -> -2 | E141: =D141-1 -> -3 | F141: -4 | G141: -5 | H141: -6 | I141: -7 | J141: -8 | AD141: (1) | AE141: (2) | AF141: (3) | AG141: (4) | AH141: (5) | AI141: (6) | AJ141: (7) | AK141: (8)
F142: (3) / (2)^2 | I142: 1/(5) + 1/(6) | J142: (4) x (7) | AG142: (3) / (2)^2 | AJ142: 1/(5) + 1/(6) | AK142: (4) x (7)
C143: =C103 -> 4 | D143: =D103 -> 1.146886912 | E143: 161.2381949 | F143: =E143/D143^2 -> 122.5820087 | G143: =D144*G144 -> 22305.9044 | H143: =H103 -> 11805 | I143: =1/G143+1/H143 -> 0.000129541048 | J143: =I143*F143 -> 0.01587940188 | AD143: 4 | AE143: 1.146886912 | AF143: 161.2381949 | AG143: 122.5820087 | AH143: 22305.9044 | AI143: 11805 | AJ143: 0.000129541048 | AK143: 0.01587940188
C144: =C104 -> 3 | D144: 1.378335276 | E144: 2887.304736 | F144: =E144/D144^2 -> 1519.787544 | G144: =D145*G145 -> 16183.22102 | H144: =H104 -> 16303 | I144: =1/G144+1/H144 -> 0.0001231307999 | J144: =I144*F144 -> 0.187132656 | AD144: 3 | AE144: 1.378335276 | AF144: 2887.304736 | AG144: 1519.787544 | AH144: 16183.22102 | AI144: 16303 | AJ144: 0.0001231307999 | AK144: 0.187132656
C145: =C105 -> 2 | D145: 1.400538383 | E145: 161.2381949 | F145: =E145/D145^2 -> 82.20115056 | G145: =E10 -> 11555 | H145: =H105 -> 21546 | I145: =1/G145+1/H145 -> 0.0001329549494 | J145: =I145*F145 -> 0.01092904981 | AD145: 2 | AE145: 1.400538383 | AF145: 161.2381949 | AG145: 82.20115056 | AH145: 11555 | AI145: 21546 | AJ145: 0.0001329549494 | AK145: 0.01092904981
F146: U(w) = | G146: =G143*D143 -> 25582.34982 | I146: Sum = | J146: =SUM(J142:J145) -> 0.2139411077 | AG146: U(w) = | AH146: 25582.34982 | AJ146: Sd = | AK146: 0.2139411077
I147: Var[R(w,d)2] = U(w)2 x Sum = | J147: =J146*(G146^2) -> 140015174.8 | AJ147: Var[R(w,d)] = U(w)2 Sd = | AK147: 140015174.8
I148: SE = | J148: =SQRT(J147) -> 11832.8008 | AI148: SE = | AJ148: [ U(w)2 Sd ] 1/2= | AK148: 11832.8008

Sheet Mack Calc & Last Ex
A1: Step 1: | B1: Data | D1: c(w,d) | J1: N = n = | K1: =K4 -> 10
AA2: exponent | AB2: 1
B3: d = Development Year
A4: w = Acc Yr | B4: 1 | C4: 2 | D4: 3 | E4: 4 | F4: 5 | G4: 6 | H4: 7 | I4: 8 | J4: 9 | K4: 10
A5: 1 | B5: 5012 | C5: 8269 | D5: 10907 | E5: 11805 | F5: 13539 | G5: 16181 | H5: 18009 | I5: 18608 | J5: 18662 | K5: 18834 | AA5: 2 | AB5: =B5 -> 5012 | AC5: =(C5-B$21*B5)/(B5)^$AB$2 -> -1.349518268
A6: 2 | B6: 106 | C6: 4285 | D6: 5396 | E6: 10666 | F6: 13782 | G6: 15599 | H6: 15496 | I6: 16169 | J6: 16704 | AB6: 106 | AC6: 37.42516965
A7: 3 | B7: 3410 | C7: 8992 | D7: 13873 | E7: 16141 | F7: 18735 | G7: 22214 | H7: 22863 | I7: 23466 | AB7: 3410 | AC7: -0.3624085047
A8: 4 | B8: 5655 | C8: 11555 | D8: 15766 | E8: 21266 | F8: 23425 | G8: 26083 | H8: 27067 | AB8: 5655 | AC8: -0.9560341597
A9: 5 | B9: 1092 | C9: 9565 | D9: 15836 | E9: 22169 | F9: 25955 | G9: 26180 | AB9: 1092 | AC9: 5.759798858
A10: 6 | B10: 1513 | C10: 6445 | D10: 11702 | E10: 12935 | F10: 15852 | AB10: 1513 | AC10: 1.260390192
A11: 7 | B11: 557 | C11: 4020 | D11: 10946 | E11: 12314 | AB11: 557 | AC11: 4.217876537
A12: 8 | B12: 1351 | C12: 6947 | D12: 13112 | AB12: 1351 | AC12: 2.142758299
A13: 9 | B13: 3133 | C13: 5395 | AB13: 3133 | AC13: -1.27736695
A14: 10 | B14: 2063
AA15: 3 | AB15: =C5 -> 8269 | AC15: =(D5-C$21*C5)/(C5)^$AB$2 -> -0.3044998973
B16: =B14 -> 2063 | C16: =C13 -> 5395 | D16: =D12 -> 13112 | E16: =E11 -> 12314 | F16: =F10 -> 15852 | G16: =G9 -> 26180 | H16: =H8 -> 27067 | I16: =I7 -> 23466 | J16: =J6 -> 16704 | K16: =K5 -> 18834 | AB16: 4285 | AC16: -0.3642462077
AB17: 8992 | AC17: -0.08070691745
AB18: 11555 | AC18: -0.2590917715
A19: Step 2: | B19: Development Factors | D19: F(d) | AB19: 9565 | AC19: 0.03209669214
A20: d | B20: 1 | C20: 2 | D20: 3 | E20: 4 | F20: 5 | G20: 6 | H20: 7 | I20: 8 | J20: 9 | K20: 10 | AB20: 6445 | AC20: 0.1921483091
B21: =SUM(C5:C13)/SUM(B5:B13) -> 2.999358651 | C21: =SUM(D5:D12)/SUM(C5:C12) -> 1.623522754 | D21: =SUM(E5:E11)/SUM(D5:D11) -> 1.270888115 | E21: =SUM(F5:F10)/SUM(E5:E10) -> 1.171674633 | F21: =SUM(G5:G9)/SUM(F5:F9) -> 1.113384886 | G21: =SUM(H5:H8)/SUM(G5:G8) -> 1.041934638 | H21: =SUM(I5:I7)/SUM(H5:H7) -> 1.033263554 | I21: =SUM(J5:J6)/SUM(I5:I6) -> 1.016936481 | J21: =SUM(K5)/SUM(J5) -> 1.00921659 | K21: 1 | AB21: 4020 | AC21: 1.099362818
AB22: 6947 | AC22: 0.2639106707
K23: U(w)
A24: Step 3: | B24: Ultimate Amounts | K24: c(w,n) | AA24: 4 | AB24: =D5 -> 10907 | AC24: =(E5-D$21*D5)/(D5)^$AB$2 -> -0.188555668
B25: d | AB25: 5396 | AC25: 0.7057612549
A26: w | B26: 1 | C26: 2 | D26: 3 | E26: 4 | F26: 5 | G26: 6 | H26: 7 | I26: 8 | J26: 9 | K26: 10 | AB26: 13873 | AC26: -0.1074050905
A27: 1 | K27: =K16*K21 -> 18834 | AB27: 15766 | AC27: 0.07796384488
A28: 2 | K28: =J16*J21*K21 -> 16857.95392 | AB28: 15836 | AC28: 0.1290234788
A29: 3 | K29: =I16*I21*J21*K21 -> 24083.37092 | AB29: 11702 | AC29: -0.165521511
A30: 4 | K30: =H16*H21*I21*J21*K21 -> 28703.14216 | AB30: 10946 | AC30: -0.1459109544
A31: 5 | K31: =G16*G21*H21*I21*J21*K21 -> 28926.73634
A32: 6 | K32: =F16*F21*G21*H21*I21*J21*K21 -> 19501.10318 | AA32: 5 | AB32: =E5 -> 11805 | AC32: =(F5-E$21*E5)/(E5)^$AB$2 -> -0.02478772076
A33: 7 | K33: =E16*E21*F21*G21*H21*I21*J21*K21 -> 17749.30259 | AB33: 10666 | AC33: 0.1204686259
A34: 8 | K34: =D16*D21*E21*F21*G21*H21*I21*J21*K21 -> 24019.19251 | AB34: 16141 | AC34: -0.01096587898
A35: 9 | K35: =C16*C21*D21*E21*F21*G21*H21*I21*J21*K21 -> 16044.9841 | AB35: 21266 | AC35: -0.07015107436
A36: 10 | K36: =B16*B21*C21*D21*E21*F21*G21*H21*I21*J21*K21 -> 18402.44253 | AB36: 22169 | AC36: -0.0008956173457
AB37: 12935 | AC37: 0.05383754318
A39: Step 4: | B39: Reserves | K39: Rw | AA39: 6 | AB39: =F5 -> 13539 | AC39: =(G5-F$21*F5)/(F5)^$AB$2 -> 0.08175507982
B40: d | AB40: =F6 -> 13782 | AC40: =(G6-F$21*F6)/(F6)^$AB$2 -> 0.01845374389
A41: w | B41: 1 | C41: 2 | D41: 3 | E41: 4 | F41: 5 | G41: 6 | H41: 7 | I41: 8 | J41: 9 | K41: 10 | AB41: =F7 -> 18735 | AC41: =(G7-F$21*F7)/(F7)^$AB$2 -> 0.07231033664
A42: 1 | K42: =K27-K16 -> 0 | AB42: =F8 -> 23425 | AC42: =(G8-F$21*F8)/(F8)^$AB$2 -> 8.363033569e-05
A43: 2 | K43: =K28-J16 -> 153.9539171 | AB43: =F9 -> 25955 | AC43: =(G9-F$21*F9)/(F9)^$AB$2 -> -0.1047160363
A44: 3 | K44: =K29-I16 -> 617.3709238
A45: 4 | K45: =K30-H16 -> 1636.142163 | AA45: 7 | AB45: =G5 -> 16181 | AC45: =(H5-G$21*G5)/(G5)^$AB$2 -> 0.07103736629
A46: 5 | K46: =K31-G16 -> 2746.736343 | AB46: =G6 -> 15599 | AC46: =(H6-G$21*G6)/(G6)^$AB$2 -> -0.04853762528
A47: 6 | K47: =K32-F16 -> 3649.103184 | AB47: =G7 -> 22214 | AC47: =(H7-G$21*G7)/(G7)^$AB$2 -> -0.01271882806
A48: 7 | K48: =K33-E16 -> 5435.30259 | AB48: =G8 -> 26083 | AC48: =(H8-G$21*G8)/(G8)^$AB$2 -> -0.004208916177
A49: 8 | K49: =K34-D16 -> 10907.19251
A50: 9 | K50: =K35-C16 -> 10649.9841 | AA50: 8 | AB50: =H5 -> 18009 | AC50: =(I5-H$21*H5)/(H5)^$AB$2 -> -2.406585208e-06
A51: 10 | K51: =K36-B16 -> 16339.44253 | AB51: =H6 -> 15496 | AC51: =(I6-H$21*H6)/(H6)^$AB$2 -> 0.01016700894
K52: =SUM(K42:K51) -> 52135.22826 | AB52: =H7 -> 22863 | AC52: =(I7-H$21*H7)/(H7)^$AB$2 -> -0.006889062253
A54: Step 5: | B54: Factor Variances
B55: d
A56: w | B56: 1 | C56: 2 | D56: 3 | E56: 4 | F56: 5 | G56: 6 | H56: 7 | I56: 8 | J56: 9 | K56: 10
A57: 1 | B57: =B5*((C5/B5)-B$21)^2 -> 9127.852176 | C57: 766.7032301 | D57: 387.7791879 | E57: 7.253359143 | F57: 90.49322836 | G57: 81.6543002 | H57: 1.043018674e-07 | I57: 3.665167233 | J57: 0
A58: 2 | B58: =B6*((C6/B6)-B$21)^2 -> 148468.1923 | C58: 568.5136596 | D58: 2687.741928 | E58: 154.7923496 | F58: 4.693331426 | G58: 36.74970076 | H58: 1.601791624 | I58: 4.218036482
A59: 3 | B59: =B7*((C7/B7)-B$21)^2 -> 447.8691418 | C59: 58.57034987 | D59: 160.036895 | E59: 1.940963351 | F59: 97.96128294 | G59: 3.593527397 | H59: 1.085059203
A60: 4 | B60: =B8*((C8/B8)-B$21)^2 -> 5168.677434 | C60: 775.6703497 | D60: 95.83144123 | E60: 104.65367 | F60: 0.0001638352242 | G60: 0.4620597029
A61: 5 | B61: =B9*((C9/B9)-B$21)^2 -> 36227.40891 | C61: =C9*((D9/C9)-C$21)^2 -> 9.853840489 | D61: =D9*((E9/D9)-D$21)^2 -> 263.6228118 | E61: =E9*((F9/E9)-E$21)^2 -> 0.0177824295 | F61: =F9*((G9/F9)-F$21)^2 -> 284.6082094
A62: 6 | B62: =B10*((C10/B10)-B$21)^2 -> 2403.526739 | C62: =C10*((D10/C10)-C$21)^2 -> 237.955669 | D62: =D10*((E10/D10)-D$21)^2 -> 320.6040309 | E62: =E10*((F10/E10)-E$21)^2 -> 37.49185245
A63: 7 | B63: =B11*((C11/B11)-B$21)^2 -> 9909.298743 | C63: =C11*((D11/C11)-C$21)^2 -> 4858.566398 | D63: =D11*((E11/D11)-D$21)^2 -> 233.0404125
A64: 8 | B64: =B12*((C12/B12)-B$21)^2 -> 6202.999136 | C64: =C12*((D12/C12)-C$21)^2 -> 483.8505063
A65: 9 | B65: =B13*((C13/B13)-B$21)^2 -> 5112.010597
A67: sd2 | B67: =SUM(B57:B65)/($K$1-B56-1) -> 27883.47939 | C67: =SUM(C57:C65)/($K$1-C56-1) -> 1108.526286 | D67: 691.4427846 | E67: 61.22999539 | F67: 119.439054 | G67: 40.81986269 | H67: 1.343425466 | I67: 7.883203715 | J67: =MIN(I67^2/H67,MIN(H67,I67)) -> 1.343425466
A70: Step 6: | B70: Cumulative Sum (but for the diagonal)
B71: d
A72: w | B72: 1 | C72: 2 | D72: 3 | E72: 4 | F72: 5 | G72: 6 | H72: 7 | I72: 8 | J72: 9 | K72: 10
A73: 1
A74: 2
A75: 3
A76: 4
A77: 5
A78: 6
A79: 7
A80: 8
A81: 9
A82: 10
A83: Swc(w,d) | B83: =SUM(B5:B13) -> 21829 | C83: =SUM(C5:C12) -> 60078 | D83: =SUM(D5:D11) -> 84426 | E83: =SUM(E5:E10) -> 94982 | F83: =SUM(F5:F9) -> 95436 | G83: =SUM(G5:G8) -> 80077 | H83: =SUM(H5:H7) -> 56368 | I83: =SUM(I5:I6) -> 34777 | J83: =SUM(J5:J5) -> 18662
A85: Step 7: | B85: Future Projections | D85: E[c(w,d)] | L85: E[c(w,n)]
B86: d
A87: w | B87: 1 | C87: 2 | D87: 3 | E87: 4 | F87: 5 | G87: 6 | H87: 7 | I87: 8 | J87: 9 | K87: 10
A88: 1 | L88: =K5*K$21 -> 18834
A89: 2 | J89: =J6 -> 16704 | K89: =J89*J$21 -> 16857.95392 | L89: 16857.95392
A90: 3 | I90: =I7 -> 23466 | J90: =I90*I$21 -> 23863.43146 | K90: 24083.37092 | L90: 24083.37092
A91: 4 | H91: =H8 -> 27067 | I91: =H91*H$21 -> 27967.34461 | J91: 28441.01301 | K91: 28703.14216 | L91: 28703.14216
A92: 5 | G92: =G9 -> 26180 | H92: =G92*G$21 -> 27277.84882 | I92: 28185.20701 | J92: 28662.56524 | K92: 28926.73634 | L92: 28926.73634
A93: 6 | F93: =F10 -> 15852 | G93: =F93*F$21 -> 17649.37722 | H93: 18389.49746 | I93: 19001.1975 | J93: 19323.01092 | K93: 19501.10318 | L93: 19501.10318
A94: 7 | E94: =E11 -> 12314 | F94: =E94*E$21 -> 14428.00143 | G94: =F94*F$21 -> 16063.91873 | H94: 16737.55335 | I94: 17294.30385 | J94: 17587.2085 | K94: 17749.30259 | L94: 17749.30259
A95: 8 | D95: =D12 -> 13112 | E95: =D95*D$21 -> 16663.88496 | F95: =E95*E$21 -> 19524.6513 | G95: =F95*F$21 -> 21738.45167 | H95: 22650.04577 | I95: 23403.46678 | J95: 23799.83915 | K95: 24019.19251 | L95: 24019.19251
A96: 9 | C96: =C13 -> 5395 | D96: =C96*C$21 -> 8758.905256 | E96: =D96*D$21 -> 11131.58859 | F96: =E96*E$21 -> 13042.59998 | G96: =F96*F$21 -> 14521.43369 | H96: 15130.38476 | I96: 15633.67512 | J96: 15898.45457 | K96: 16044.9841 | L96: 16044.9841
A97: 10 | B97: =B14 -> 2063 | C97: =B97*B$21 -> 6187.676898 | D97: =C97*C$21 -> 10045.83424 | E97: =D97*D$21 -> 12767.13134 | F97: =E97*E$21 -> 14958.92392 | G97: =F97*F$21 -> 16655.03981 | H97: 17353.46288 | I97: 17930.70072 | J97: 18234.38369 | K97: 18402.44253 | L97: 18402.44253
A100: Step 8: | B100: Mean Square Error of an AY w (row) | F100: MSE(Rw) | L100: SE(Rw)
B101: d
A102: w | B102: 1 | C102: 2 | D102: 3 | E102: 4 | F102: 5 | G102: 6 | H102: 7 | I102: 8 | J102: 9 | K102: 10
A103: 1
A104: 2 | J104: =(J$67/(J$21^2))*((1/J89)+(1/J$83)) -> 0.000149641513 | L104: =SQRT(K28^2*SUM(B104:J104)) -> 206.2200594
A105: 3 | I105: =(I$67/(I$21^2))*((1/I90)+(1/I$83)) -> 0.0005440360141 | J105: 0.0001259512449 | L105: 623.3766726
A106: 4 | H106: =(H$67/(H$21^2))*((1/H91)+(1/H$83)) -> 6.88124271e-05 | I106: 0.0004917522246 | J106: 0.0001170550774 | L106: 747.1752251
A107: 5 | G107: =(G$67/(G$21^2))*((1/G92)+(1/G$83)) -> 0.001905770944 | H107: 6.845308154e-05 | I107: 0.0004896454168 | J107: 0.0001166966008 | L107: 1469.45715
A108: 6 | F108: =(F$67/(F$21^2))*((1/F93)+(1/F$83)) -> 0.007087739661 | G108: 0.002599951266 | H108: 9.074937078e-05 | I108: 0.0006203663739 | J108: 0.0001389389734 | L108: 2001.856931
A109: 7 | E109: =(E$67/(E$21^2))*((1/E94)+(1/E$83)) -> 0.004091600699 | F109: =(F$67/(F$21^2))*((1/F94)+(1/F$83)) -> 0.007687634359 | G109: 0.002810215099 | H109: 9.750280804e-05 | I109: 0.0006599611142 | J109: 0.0001456760796 | L109: 2209.242094
A110: 8 | D110: =(D$67/(D$21^2))*((1/D95)+(1/D$83)) -> 0.03771988019 | E110: =(E$67/(E$21^2))*((1/E95)+(1/E$83)) -> 0.003146120288 | F110: =(F$67/(F$21^2))*((1/F95)+(1/F$83)) -> 0.005944418983 | G110: 0.002199215954 | H110: 7.787820442e-05 | I110: 0.0005449039879 | J110: 0.000126098932 | L110: 5357.869298
A111: 9 | C111: =(C$67/(C$21^2))*((1/C96)+(1/C$83)) -> 0.08495414275 | D111: =(D$67/(D$21^2))*((1/D96)+(1/D$83)) -> 0.05394623479 | E111: =(E$67/(E$21^2))*((1/E96)+(1/E$83)) -> 0.004476336399 | F111: =(F$67/(F$21^2))*((1/F96)+(1/F$83)) -> 0.008396985056 | G111: 0.003058843395 | H111: 0.0001054884686 | I111: 0.0007067802588 | J111: 0.0001536424293 | L111: 6333.165866
A112: 10 | B112: =(B$67/(B$21^2))*((1/B97)+(1/B$83)) -> 1.644408082 | C112: =(C$67/(C$21^2))*((1/C97)+(1/C$83)) -> 0.07496780247 | D112: =(D$67/(D$21^2))*((1/D97)+(1/D$83)) -> 0.04768499471 | E112: =(E$67/(E$21^2))*((1/E97)+(1/E$83)) -> 0.003963047824 | F112: =(F$67/(F$21^2))*((1/F97)+(1/F$83)) -> 0.007450616918 | G112: 0.002727140193 | H112: 9.483453571e-05 | I112: 0.0006443172953 | J112: =(J$67/(J$21^2))*((1/J97)+(1/J$83)) -> 0.0001430142596 | L112: 24566.28791
A115: Step 9: | B115: Overall Mean Square Error (triangular entires calculate covariance terms) | L115: SE(R)
B116: d
A117: w | B117: 1 | C117: 2 | D117: 3 | E117: 4 | F117: 5 | G117: 6 | H117: 7 | I117: 8 | J117: 9 | K117: 10
A118: 1
A119: 2 | J119: =(2*J$67/(J$21^2))/J$83 -> 0.0001413567739 | L119: =L104^2+(K28*SUM(K29:K$36)*SUM(B119:J119)) -> 465340.5692
A120: 3 | I120: =(2*I$67/(I$21^2))/I$83 -> 0.0004383822642 | J120: 0.0001413567739 | L120: =L105^2+(K29*SUM(K30:K$36)*SUM(B120:J120)) -> 2529638.721
A121: 4 | H121: =(2*H$67/(H$21^2))/H$83 -> 4.464663425e-05 | I121: 0.0004383822642 | J121: 0.0001413567739 | L121: =L106^2+(K30*SUM(K31:K$36)*SUM(B121:J121)) -> 2792115.206
A122: 5 | G122: =(2*G$67/(G$21^2))/G$83 -> 0.0009391020508 | H122: 4.464663425e-05 | I122: 0.0004383822642 | J122: 0.0001413567739 | L122: =L107^2+(K31*SUM(K32:K$36)*SUM(B122:J122)) -> 6488259.64
A123: 6 | F123: =(2*F$67/(F$21^2))/F$83 -> 0.002019172761 | G123: 0.0009391020508 | H123: 4.464663425e-05 | I123: 0.0004383822642 | J123: 0.0001413567739 | L123: =L108^2+(K32*SUM(K33:K$36)*SUM(B123:J123)) -> 9332319.938
A124: 7 | E124: =(2*E$67/(E$21^2))/E$83 -> 0.0009391584217 | F124: =(2*F$67/(F$21^2))/F$83 -> 0.002019172761 | G124: 0.0009391020508 | H124: 4.464663425e-05 | I124: 0.0004383822642 | J124: 0.0001413567739 | L124: =L109^2+(K33*SUM(K34:K$36)*SUM(B124:J124)) -> 9573230.732
A125: 8 | D125: =(2*D$67/(D$21^2))/D$83 -> 0.0101413412 | E125: =(2*E$67/(E$21^2))/E$83 -> 0.0009391584217 | F125: =(2*F$67/(F$21^2))/F$83 -> 0.002019172761 | G125: 0.0009391020508 | H125: 4.464663425e-05 | I125: 0.0004383822642 | J125: 0.0001413567739 | L125: =L110^2+(K34*SUM(K35:K$36)*SUM(B125:J125)) -> 40839052.87
A126: 9 | C126: =(2*C$67/(C$21^2))/C$83 -> 0.01400050708 | D126: =(2*D$67/(D$21^2))/D$83 -> 0.0101413412 | E126: =(2*E$67/(E$21^2))/E$83 -> 0.0009391584217 | F126: =(2*F$67/(F$21^2))/F$83 -> 0.002019172761 | G126: 0.0009391020508 | H126: 4.464663425e-05 | I126: 0.0004383822642 | J126: 0.0001413567739 | L126: =L111^2+(K35*SUM(K36:K$36)*SUM(B126:J126)) -> 48572421.97
A127: 10 | B127: =(2*B$67/(B$21^2))/B$83 -> 0.2839790619 | C127: =(2*C$67/(C$21^2))/C$83 -> 0.01400050708 | D127: =(2*D$67/(D$21^2))/D$83 -> 0.0101413412 | E127: =(2*E$67/(E$21^2))/E$83 -> 0.0009391584217 | F127: =(2*F$67/(F$21^2))/F$83 -> 0.002019172761 | G127: 0.0009391020508 | H127: 4.464663425e-05 | I127: 0.0004383822642 | J127: 0.0001413567739 | L127: =L112^2 -> 603502501.7
K129: Mack Overall Mean Square Error ==> | L129: =SQRT(SUM(L119:L127)) -> 26909.01116
K131: Assuming Independence ==> | L131: =SQRT(SUMSQ(L104:L112)) -> 26160.18228
K132: Assuming 100% Correlation ==> | L132: =SUM(L104:L112) -> 43514.65121
A174: Question on II.25
B176: Year | C176: Ultimate | D176: IBNR | E176: SE(Rw) | F176: SE(R)
B177: 1 | C177: =L88 -> 18834 | D177: =K42 -> 0
B178: 2 | C178: =L89 -> 16857.95392 | D178: =K43 -> 153.9539171 | E178: =L104 -> 206.2200594 | F178: =E178^2+(K28*SUM(K$29:K29)*SUM(B119:J119)) -> 99917.04817
B179: 3 | C179: =L90 -> 24083.37092 | D179: =K44 -> 617.3709238 | E179: =L105 -> 623.3766726 | F179: =E179^2 -> 388598.476
B181: Total | D181: =SUM(D177:D179) -> 771.3248409 | F181: =SQRT(SUM(F177:F179)) -> 698.9388558
B184: Gamma beta | E184: =D181/SUM(F177:F179) -> 0.001578915721
B185: Gamma alpha | E185: =E184*D181 -> 1.217856917
B186: 1/Beta | E186: =1/E184 -> 633.3460279
B187: 95th Percentile | E187: =GAMMAINV(0.95,E185,E186) -> 2156.805398

Sheet Distribution
A1: Lognormal Parameters | I1: Gamma Parameters
B3: X ~ lognormal
A4: Þ | B4: ln[X] ~ Normal(m,s)
A6: if | B6: M = E[X] = em+0.5s2 = | E6: =SUM('Mack Calc & Last Ex'!K42:K52) -> 104270.4565 | J6: b = M/V | L6: =(E7/E6) -> 6944.39159
B7: V = Var[X] = e2m+2s2 - e2m+s2 = | E7: ='Mack Calc & Last Ex'!L129^2 -> 724094881.4 | J7: a = M/b | L7: =E6/L6 -> 15.01506002
B8: cv = | E8: =E7^0.5/E6 -> 0.2580693713
A10: and | B10: s2 = ln(1+cv2) | E10: =LN(1+E8^2) -> 0.06447583203
B11: s = | E11: =E10^0.5 -> 0.2539209169
B12: m = lnE[X] -0.5*s2 = | E12: =LN(E6)-0.5*E10 -> 11.52250543
B15: 75th Percentile | E15: =LOGINV(0.75,E12,E11) -> 119823.1861 | L15: =GAMMAINV(0.75,L7,L6) -> 120945.3105
A21: Slide II.18
E46: Mean Reserve | G46: =E6 -> 104270.4565
E47: Standard Error | G47: =E7^0.5 -> 26909.01116
E48: 75th Percentile (logNormal) | G48: =E15 -> 119823.1861
E49: 75th Percentile (Gamma) | G49: =L15 -> 120945.3105
C90: cdf | D90: ln[X] | E90: X | F90: pdf
B91: =F91*1000 -> 5.15956629e-06 | C91: 1e-05 | D91: =NORMINV(C91,$E$12,$E$11) -> 10.43956045 | E91: =EXP(D91) -> 34185.62282 | F91: =EXP(-0.5*((LN(E91)-$E$12)/$E$11)^2)/(E91*$E$11*(2*PI())^0.5) -> 5.15956629e-09 | G91: =NORMDIST(LN(E91),$E$12,$E$11,1) -> 1e-05 | H91: mean | I91: =E6 -> 104270.4565 | J91: 0
B92: =F92*1000 -> 0.001084813024 | C92: 0.005 | D92: 10.86844849 | E92: 52493.70263 | F92: =EXP(-0.5*((LN(E92)-$E$12)/$E$11)^2)/(E92*$E$11*(2*PI())^0.5) -> 1.084813024e-06 | G92: 0.005 | I92: =I91 -> 104270.4565 | J92: =EXP(-0.5*((LN(I92)-$E$12)/$E$11)^2)/(I92*$E$11*(2*PI())^0.5) -> 1.494686548e-05
B93: 0.001876784942 | C93: 0.01 | D93: 10.93179704 | E93: 55926.69223 | F93: 1.876784942e-06 | G93: 0.01
B94: 0.002563014798 | C94: 0.015 | D94: 10.97147409 | E94: 58190.30806 | F94: 2.563014798e-06 | G94: 0.015 | H94: 0.75 | I94: =E241 -> 119823.1861 | J94: 0
B95: 0.003181480067 | C95: 0.02 | D95: 11.00101562 | E95: 59934.9822 | F95: 3.181480067e-06 | G95: 0.02 | I95: =I94 -> 119823.1861 | J95: =F241 -> 1.044437691e-05
B96: 0.003749961029 | C96: 0.025 | D96: 11.02482958 | E96: 61379.40154 | F96: 3.749961029e-06 | G96: 0.025
B97: 0.004278829733 | C97: 0.03 | D97: 11.04493259 | E97: 62625.79874 | F97: 4.278829733e-06 | G97: 0.03
B98: 0.004774889737 | C98: 0.035 | D98: 11.06242341 | E98: 63730.8108 | F98: 4.774889737e-06 | G98: 0.035
B99: 0.00524294812 | C99: 0.04 | D99: 11.07796962 | E99: 64729.32462 | F99: 5.24294812e-06 | G99: 0.04
B100: 0.005686581343 | C100: 0.045 | D100: 11.09200849 | E100: 65644.45998 | F100: 5.686581343e-06 | G100: 0.045
B101: 0.00610855361 | C101: 0.05 | D101: 11.10484269 | E101: 66492.38368 | F101: 6.10855361e-06 | G101: 0.05
B102: 0.006511064869 | C102: 0.055 | D102: 11.11669076 | E102: 67284.87582 | F102: 6.511064869e-06 | G102: 0.055
B103: 0.006895907209 | C103: 0.06 | D103: 11.12771589 | E103: 68030.8048 | F103: 6.895907209e-06 | G103: 0.06
B104: 0.007264568367 | C104: 0.065 | D104: 11.13804329 | E104: 68737.02638 | F104: 7.264568367e-06 | G104: 0.065
B105: 0.00761830297 | C105: 0.07 | D105: 11.14777122 | E105: 69408.95821 | F105: 7.61830297e-06 | G105: 0.07
B106: 0.007958183172 | C106: 0.075 | D106: =NORMINV(C106,$E$12,$E$11) -> 11.15697828 | E106: =EXP(D106) -> 70050.9616 | F106: =EXP(-0.5*((LN(E106)-$E$12)/$E$11)^2)/(E106*$E$11*(2*PI())^0.5) -> 7.958183172e-06 | G106: =NORMDIST(LN(E106),$E$12,$E$11,1) -> 0.075
B107: 0.00828513562 | C107: 0.08 | D107: 11.16572837 | E107: 70666.6035 | F107: 8.28513562e-06 | G107: 0.08
B108: 0.008599969086 | C108: 0.085 | D108: 11.17407418 | E108: 71258.84143 | F108: 8.599969086e-06 | G108: 0.085
B109: 0.008903395522 | C109: 0.09 | D109: 11.18205968 | E109: 71830.15713 | F109: 8.903395522e-06 | G109: 0.09
B110: 0.009196046388 | C110: 0.095 | D110: 11.18972198 | E110: 72382.65517 | F110: 9.196046388e-06 | G110: 0.095
B111: 0.009478485508 | C111: 0.1 | D111: 11.19709268 | E111: 72918.13711 | F111: 9.478485508e-06 | G111: 0.1
B112: 0.009751219336 | C112: 0.105 | D112: 11.20419894 | E112: 73438.15809 | F112: 9.751219336e-06 | G112: 0.105
B113: 0.01001470523 | C113: 0.11 | D113: 11.21106429 | E113: 73944.07071 | F113: 1.001470523e-05 | G113: 0.11
B114: 0.01026935825 | C114: 0.115 | D114: 11.21770921 | E114: 74437.05949 | F114: 1.026935825e-05 | G114: 0.115
B115: 0.01051555668 | C115: 0.12 | D115: =NORMINV(C115,$E$12,$E$11) -> 11.22415171 | E115: 74918.16822 | F115: 1.051555668e-05 | G115: 0.12
B116: 0.01075364672 | C116: 0.125 | D116: =NORMINV(C116,$E$12,$E$11) -> 11.23040766 | E116: =EXP(D116) -> 75388.32194 | F116: =EXP(-0.5*((LN(E116)-$E$12)/$E$11)^2)/(E116*$E$11*(2*PI())^0.5) -> 1.075364672e-05 | G116: =NORMDIST(LN(E116),$E$12,$E$11,1) -> 0.125
B117: 0.01098394638 | C117: 0.13 | D117: 11.23649116 | E117: 75848.34474 | F117: 1.098394638e-05 | G117: 0.13
B118: 0.01120674871 | C118: 0.135 | D118: 11.24241477 | E118: 76298.97431 | F118: 1.120674871e-05 | G118: 0.135
B119: 0.01142232467 | C119: 0.14 | D119: 11.24818975 | E119: 76740.87397 | F119: 1.142232467e-05 | G119: 0.14
B120: 0.01163092546 | C120: 0.145 | D120: 11.25382622 | E120: 77174.64263 | F120: 1.163092546e-05 | G120: 0.145
B121: 0.01183278463 | C121: 0.15 | D121: 11.25933331 | E121: 77600.82313 | F121: 1.183278463e-05 | G121: 0.15
B122: 0.01202811982 | C122: 0.155 | D122: 11.26471932 | E122: 78019.9093 | F122: 1.202811982e-05 | G122: 0.155
B123: 0.01221713437 | C123: 0.16 | D123: 11.26999177 | E123: 78432.35186 | F123: 1.221713437e-05 | G123: 0.16
B124: 0.01240001859 | C124: 0.165 | D124: 11.27515754 | E124: 78838.56354 | F124: 1.240001859e-05 | G124: 0.165
B125: 0.01257695105 | C125: 0.17 | D125: 11.28022291 | E125: 79238.9234 | F125: 1.257695105e-05 | G125: 0.17
B126: 0.01274809953 | C126: 0.175 | D126: 11.28519366 | E126: 79633.78053 | F126: 1.274809953e-05 | G126: 0.175
B127: 0.01291362204 | C127: 0.18 | D127: 11.29007509 | E127: 80023.45736 | F127: 1.291362204e-05 | G127: 0.18
B128: 0.01307366757 | C128: 0.185 | D128: 11.29487209 | E128: 80408.25238 | F128: 1.307366757e-05 | G128: 0.185
B129: 0.01322837688 | C129: 0.19 | D129: 11.2995892 | E129: 80788.44266 | F129: 1.322837688e-05 | G129: 0.19
B130: 0.01337788311 | C130: 0.195 | D130: 11.3042306 | E130: 81164.28591 | F130: 1.337788311e-05 | G130: 0.195
B131: 0.01352231239 | C131: 0.2 | D131: 11.30880019 | E131: 81536.02244 | F131: 1.352231239e-05 | G131: 0.2
B132: 0.0136617844 | C132: 0.205 | D132: 11.3133016 | E132: 81903.87676 | F132: 1.36617844e-05 | G132: 0.205
B133: 0.01379641278 | C133: 0.21 | D133: 11.31773821 | E133: 82268.05906 | F133: 1.379641278e-05 | G133: 0.21
B134: 0.01392630561 | C134: 0.215 | D134: 11.32211316 | E134: 82628.76653 | F134: 1.392630561e-05 | G134: 0.215
B135: 0.01405156581 | C135: 0.22 | D135: 11.32642942 | E135: 82986.1845 | F135: 1.405156581e-05 | G135: 0.22
B136: 0.01417229144 | C136: 0.225 | D136: 11.33068975 | E136: 83340.48745 | F136: 1.417229144e-05 | G136: 0.225
B137: 0.01428857608 | C137: 0.23 | D137: 11.33489676 | E137: 83691.84 | F137: 1.428857608e-05 | G137: 0.23
B138: 0.01440050909 | C138: 0.235 | D138: 11.33905289 | E138: 84040.39766 | F138: 1.440050909e-05 | G138: 0.235
B139: 0.01450817589 | C139: 0.24 | D139: 11.34316044 | E139: 84386.30764 | F139: 1.450817589e-05 | G139: 0.24
B140: 0.01461165824 | C140: 0.245 | D140: 11.34722158 | E140: 84729.70949 | F140: 1.461165824e-05 | G140: 0.245
B141: 0.01471103438 | C141: 0.25 | D141: 11.35123837 | E141: 85070.73571 | F141: 1.471103438e-05 | G141: 0.25
B142: 0.01480637934 | C142: 0.255 | D142: 11.35521276 | E142: 85409.51232 | F142: 1.480637934e-05 | G142: 0.255
B143: 0.01489776506 | C143: 0.26 | D143: 11.35914657 | E143: 85746.15933 | F143: 1.489776506e-05 | G143: 0.26
B144: 0.01498526061 | C144: 0.265 | D144: 11.36304157 | E144: 86080.79122 | F144: 1.498526061e-05 | G144: 0.265
B145: 0.01506893231 | C145: 0.27 | D145: 11.36689939 | E145: 86413.51736 | F145: 1.506893231e-05 | G145: 0.27
B146: 0.01514884394 | C146: 0.275 | D146: 11.37072163 | E146: 86744.44236 | F146: 1.514884394e-05 | G146: 0.275
B147: 0.01522505681 | C147: 0.28 | D147: 11.37450978 | E147: 87073.66645 | F147: 1.522505681e-05 | G147: 0.28
B148: 0.01529762995 | C148: 0.285 | D148: 11.37826527 | E148: 87401.28576 | F148: 1.529762995e-05 | G148: 0.285
B149: 0.0153666202 | C149: 0.29 | D149: 11.38198947 | E149: 87727.39266 | F149: 1.53666202e-05 | G149: 0.29
B150: 0.01543208234 | C150: 0.295 | D150: 11.38568369 | E150: 88052.076 | F150: 1.543208234e-05 | G150: 0.295
B151: 0.01549406916 | C151: 0.3 | D151: 11.38934917 | E151: 88375.42136 | F151: 1.549406916e-05 | G151: 0.3
B152: 0.01555263162 | C152: 0.305 | D152: 11.39298711 | E152: 88697.51128 | F152: 1.555263162e-05 | G152: 0.305
B153: 0.01560781886 | C153: 0.31 | D153: 11.39659866 | E153: 89018.42548 | F153: 1.560781886e-05 | G153: 0.31
B154: 0.01565967835 | C154: 0.315 | D154: 11.40018491 | E154: 89338.24107 | F154: 1.565967835e-05 | G154: 0.315
B155: 0.01570825595 | C155: 0.32 | D155: 11.40374692 | E155: 89657.0327 | F155: 1.570825595e-05 | G155: 0.32
B156: =F156*1000 -> 0.01575359597 | C156: 0.325 | D156: 11.40728572 | E156: 89974.87275 | F156: 1.575359597e-05 | G156: 0.325
B157: 0.01579574127 | C157: 0.33 | D157: 11.41080228 | E157: 90291.83149 | F157: 1.579574127e-05 | G157: 0.33
B158: 0.01583473329 | C158: 0.335 | D158: 11.41429754 | E158: 90607.97724 | F158: 1.583473329e-05 | G158: 0.335
B159: 0.01587061213 | C159: 0.34 | D159: 11.41777241 | E159: 90923.37647 | F159: 1.587061213e-05 | G159: 0.34
B160: 0.01590341663 | C160: 0.345 | D160: 11.42122779 | E160: 91238.09399 | F160: 1.590341663e-05 | G160: 0.345
B161: 0.01593318436 | C161: 0.35 | D161: 11.4246645 | E161: 91552.193 | F161: 1.593318436e-05 | G161: 0.35
B162: 0.01595995176 | C162: 0.355 | D162: 11.42808339 | E162: 91865.73527 | F162: 1.595995176e-05 | G162: 0.355
B163: 0.01598375411 | C163: 0.36 | D163: 11.43148524 | E163: 92178.78123 | F163: 1.598375411e-05 | G163: 0.36
B164: 0.01600462561 | C164: 0.365 | D164: 11.43487084 | E164: 92491.39005 | F164: 1.600462561e-05 | G164: 0.365
B165: 0.01602259943 | C165: 0.37 | D165: 11.43824092 | E165: 92803.61976 | F165: 1.602259943e-05 | G165: 0.37
B166: 0.01603770774 | C166: 0.375 | D166: 11.44159623 | E166: 93115.52733 | F166: 1.603770774e-05 | G166: 0.375
B167: 0.01604998174 | C167: 0.38 | D167: 11.44493747 | E167: 93427.16878 | F167: 1.604998174e-05 | G167: 0.38
B168: 0.01605945171 | C168: 0.385 | D168: 11.44826533 | E168: 93738.59924 | F168: 1.605945171e-05 | G168: 0.385
B169: 0.01606614704 | C169: 0.39 | D169: 11.45158048 | E169: 94049.87303 | F169: 1.606614704e-05 | G169: 0.39
B170: 0.01607009626 | C170: 0.395 | D170: 11.45488359 | E170: 94361.04376 | F170: 1.607009626e-05 | G170: 0.395
B171: 0.01607132708 | C171: 0.4 | D171: 11.4581753 | E171: 94672.16439 | F171: 1.607132708e-05 | G171: 0.4
B172: 0.0160698664 | C172: 0.405 | D172: 11.46145623 | E172: 94983.28728 | F172: 1.60698664e-05 | G172: 0.405
B173: 0.01606574036 | C173: 0.41 | D173: 11.464727 | E173: 95294.46431 | F173: 1.606574036e-05 | G173: 0.41
B174: 0.01605897436 | C174: 0.415 | D174: 11.46798821 | E174: 95605.74688 | F174: 1.605897436e-05 | G174: 0.415
B175: 0.01604959306 | C175: 0.42 | D175: 11.47124045 | E175: 95917.18604 | F175: 1.604959306e-05 | G175: 0.42
B176: 0.01603762045 | C176: 0.425 | D176: 11.47448431 | E176: 96228.83249 | F176: 1.603762045e-05 | G176: 0.425
B177: 0.01602307984 | C177: 0.43 | D177: 11.47772034 | E177: 96540.73672 | F177: 1.602307984e-05 | G177: 0.43
B178: 0.01600599387 | C178: 0.435 | D178: 11.48094912 | E178: 96852.94896 | F178: 1.600599387e-05 | G178: 0.435
B179: 0.01598638457 | C179: 0.44 | D179: 11.48417119 | E179: 97165.51936 | F179: 1.598638457e-05 | G179: 0.44
B180: 0.01596427336 | C180: 0.445 | D180: =NORMINV(C180,$E$12,$E$11) -> 11.4873871 | E180: =EXP(D180) -> 97478.49794 | F180: =EXP(-0.5*((LN(E180)-$E$12)/$E$11)^2)/(E180*$E$11*(2*PI())^0.5) -> 1.596427336e-05 | G180: =NORMDIST(LN(E180),$E$12,$E$11,1) -> 0.445
B181: 0.01593968104 | C181: 0.45 | D181: 11.49059739 | E181: 97791.93473 | F181: 1.593968104e-05 | G181: 0.45
B182: 0.01591262788 | C182: 0.455 | D182: 11.49380258 | E182: 98105.87976 | F182: 1.591262788e-05 | G182: 0.455
B183: 0.01588313354 | C183: 0.46 | D183: 11.49700321 | E183: 98420.38317 | F183: 1.588313354e-05 | G183: 0.46
B184: 0.01585121716 | C184: 0.465 | D184: 11.50019979 | E184: 98735.49523 | F184: 1.585121716e-05 | G184: 0.465
B185: 0.01581689737 | C185: 0.47 | D185: 11.50339284 | E185: 99051.26641 | F185: 1.581689737e-05 | G185: 0.47
B186: 0.01578019225 | C186: 0.475 | D186: 11.50658287 | E186: 99367.74743 | F186: 1.578019225e-05 | G186: 0.475
B187: 0.01574111941 | C187: 0.48 | D187: 11.50977039 | E187: 99684.98932 | F187: 1.574111941e-05 | G187: 0.48
B188: 0.01569969594 | C188: 0.485 | D188: 11.5129559 | E188: 100003.0435 | F188: 1.569969594e-05 | G188: 0.485
B189: 0.01565593849 | C189: 0.49 | D189: 11.51613991 | E189: 100321.9617 | F189: 1.565593849e-05 | G189: 0.49
B190: 0.01560986322 | C190: 0.495 | D190: 11.51932292 | E190: 100641.7962 | F190: 1.560986322e-05 | G190: 0.495
B191: 0.01556148585 | C191: 0.5 | D191: 11.52250543 | E191: 100962.6 | F191: 1.556148585e-05 | G191: 0.5
B192: 0.01551082166 | C192: 0.505 | D192: 11.52568794 | E192: 101284.4263 | F192: 1.551082166e-05 | G192: 0.505
B193: 0.01545788549 | C193: 0.51 | D193: 11.52887095 | E193: 101607.3293 | F193: 1.545788549e-05 | G193: 0.51
B194: 0.01540269176 | C194: 0.515 | D194: 11.53205496 | E194: 101931.3637 | F194: 1.540269176e-05 | G194: 0.515
B195: 0.01534525447 | C195: 0.52 | D195: 11.53524047 | E195: 102256.5851 | F195: 1.534525447e-05 | G195: 0.52
B196: 0.01528558723 | C196: 0.525 | D196: 11.53842799 | E196: 102583.0499 | F196: 1.528558723e-05 | G196: 0.525
B197: 0.01522370325 | C197: 0.53 | D197: 11.54161802 | E197: 102910.8154 | F197: 1.522370325e-05 | G197: 0.53
B198: 0.01515961534 | C198: 0.535 | D198: 11.54481107 | E198: 103239.9399 | F198: 1.515961534e-05 | G198: 0.535
B199: 0.01509333593 | C199: 0.54 | D199: 11.54800765 | E199: 103570.4827 | F199: 1.509333593e-05 | G199: 0.54
B200: 0.01502487709 | C200: 0.545 | D200: 11.55120828 | E200: 103902.5043 | F200: 1.502487709e-05 | G200: 0.545
B201: 0.01495425051 | C201: 0.55 | D201: 11.55441347 | E201: 104236.0663 | F201: 1.495425051e-05 | G201: 0.55
B202: 0.01488146751 | C202: 0.555 | D202: 11.55762376 | E202: 104571.2317 | F202: 1.488146751e-05 | G202: 0.555
B203: 0.01480653907 | C203: 0.56 | D203: 11.56083967 | E203: 104908.0647 | F203: 1.480653907e-05 | G203: 0.56
B204: 0.01472947581 | C204: 0.565 | D204: 11.56406174 | E204: 105246.6311 | F204: 1.472947581e-05 | G204: 0.565
B205: 0.01465028799 | C205: 0.57 | D205: 11.56729052 | E205: 105586.9982 | F205: 1.465028799e-05 | G205: 0.57
B206: 0.01456898556 | C206: 0.575 | D206: 11.57052655 | E206: 105929.2348 | F206: 1.456898556e-05 | G206: 0.575
B207: 0.01448557809 | C207: 0.58 | D207: 11.57377041 | E207: 106273.4116 | F207: 1.448557809e-05 | G207: 0.58
B208: 0.01440007486 | C208: 0.585 | D208: 11.57702265 | E208: 106619.6011 | F208: 1.440007486e-05 | G208: 0.585
B209: 0.01431248479 | C209: 0.59 | D209: 11.58028386 | E209: 106967.8776 | F209: 1.431248479e-05 | G209: 0.59
B210: 0.01422281648 | C210: 0.595 | D210: 11.58355463 | E210: 107318.3176 | F210: 1.422281648e-05 | G210: 0.595
B211: 0.01413107821 | C211: 0.6 | D211: 11.58683556 | E211: 107670.9998 | F211: 1.413107821e-05 | G211: 0.6
B212: 0.01403727792 | C212: 0.605 | D212: 11.59012727 | E212: 108026.0051 | F212: 1.403727792e-05 | G212: 0.605
B213: 0.01394142326 | C213: 0.61 | D213: 11.59343038 | E213: 108383.4169 | F213: 1.394142326e-05 | G213: 0.61
B214: 0.01384352154 | C214: 0.615 | D214: 11.59674553 | E214: 108743.3211 | F214: 1.384352154e-05 | G214: 0.615
B215: 0.01374357976 | C215: 0.62 | D215: 11.60007339 | E215: 109105.8065 | F215: 1.374357976e-05 | G215: 0.62
B216: 0.0136416046 | C216: 0.625 | D216: 11.60341463 | E216: 109470.9646 | F216: 1.36416046e-05 | G216: 0.625
B217: 0.01353760242 | C217: 0.63 | D217: 11.60676994 | E217: 109838.8901 | F217: 1.353760242e-05 | G217: 0.63
B218: 0.0134315793 | C218: 0.635 | D218: 11.61014002 | E218: 110209.681 | F218: 1.34315793e-05 | G218: 0.635
B219: 0.01332354096 | C219: 0.64 | D219: 11.61352562 | E219: 110583.4386 | F219: 1.332354096e-05 | G219: 0.64
B220: =F220*1000 -> 0.01321349283 | C220: 0.645 | D220: 11.61692747 | E220: 110960.2679 | F220: 1.321349283e-05 | G220: 0.645
B221: 0.01310144002 | C221: 0.65 | D221: 11.62034636 | E221: 111340.2777 | F221: 1.310144002e-05 | G221: 0.65
B222: 0.01298738732 | C222: 0.655 | D222: 11.62378307 | E222: 111723.5811 | F222: 1.298738732e-05 | G222: 0.655
B223: 0.01287133922 | C223: 0.66 | D223: 11.62723845 | E223: 112110.2954 | F223: 1.287133922e-05 | G223: 0.66
B224: 0.01275329986 | C224: 0.665 | D224: 11.63071332 | E224: 112500.5425 | F224: 1.275329986e-05 | G224: 0.665
B225: 0.01263327309 | C225: 0.67 | D225: 11.63420858 | E225: 112894.4493 | F225: 1.263327309e-05 | G225: 0.67
B226: 0.01251126242 | C226: 0.675 | D226: 11.63772514 | E226: 113292.1479 | F226: 1.251126242e-05 | G226: 0.675
B227: 0.01238727102 | C227: 0.68 | D227: 11.64126394 | E227: 113693.776 | F227: 1.238727102e-05 | G227: 0.68
B228: 0.01226130175 | C228: 0.685 | D228: 11.64482595 | E228: 114099.4771 | F228: 1.226130175e-05 | G228: 0.685
B229: 0.01213335714 | C229: 0.69 | D229: 11.6484122 | E229: 114509.4012 | F229: 1.213335714e-05 | G229: 0.69
B230: 0.01200343934 | C230: 0.695 | D230: 11.65202375 | E230: 114923.7047 | F230: 1.200343934e-05 | G230: 0.695
B231: 0.0118715502 | C231: 0.7 | D231: 11.65566169 | E231: 115342.5516 | F231: 1.18715502e-05 | G231: 0.7
B232: 0.01173769119 | C232: 0.705 | D232: 11.65932717 | E232: 115766.1132 | F232: 1.173769119e-05 | G232: 0.705
B233: 0.01160186344 | C233: 0.71 | D233: 11.66302139 | E233: 116194.5692 | F233: 1.160186344e-05 | G233: 0.71
B234: 0.0114640677 | C234: 0.715 | D234: 11.66674559 | E234: 116628.108 | F234: 1.14640677e-05 | G234: 0.715
B235: 0.01132430437 | C235: 0.72 | D235: 11.67050108 | E235: 117066.9275 | F235: 1.132430437e-05 | G235: 0.72
B236: 0.01118257343 | C236: 0.725 | D236: 11.67428923 | E236: 117511.2355 | F236: 1.118257343e-05 | G236: 0.725
B237: 0.0110388745 | C237: 0.73 | D237: 11.67811147 | E237: 117961.2508 | F237: 1.10388745e-05 | G237: 0.73
B238: 0.0108932068 | C238: 0.735 | D238: 11.68196929 | E238: 118417.2038 | F238: 1.08932068e-05 | G238: 0.735
B239: 0.01074556913 | C239: 0.74 | D239: 11.68586429 | E239: 118879.3373 | F239: 1.074556913e-05 | G239: 0.74
B240: 0.01059595985 | C240: 0.745 | D240: 11.6897981 | E240: 119347.9077 | F240: 1.059595985e-05 | G240: 0.745
B241: 0.01044437691 | C241: 0.75 | D241: 11.69377249 | E241: 119823.1861 | F241: 1.044437691e-05 | G241: 0.75
B242: 0.01029081778 | C242: 0.755 | D242: 11.69778928 | E242: 120305.459 | F242: 1.029081778e-05 | G242: 0.755
B243: 0.01013527949 | C243: 0.76 | D243: 11.70185042 | E243: 120795.0304 | F243: 1.013527949e-05 | G243: 0.76
B244: 0.009977758566 | C244: 0.765 | D244: =NORMINV(C244,$E$12,$E$11) -> 11.70595797 | E244: =EXP(D244) -> 121292.2223 | F244: =EXP(-0.5*((LN(E244)-$E$12)/$E$11)^2)/(E244*$E$11*(2*PI())^0.5) -> 9.977758566e-06 | G244: =NORMDIST(LN(E244),$E$12,$E$11,1) -> 0.765
B245: 0.009818251027 | C245: 0.77 | D245: 11.7101141 | E245: 121797.3771 | F245: 9.818251027e-06 | G245: 0.77
B246: 0.009656752377 | C246: 0.775 | D246: 11.71432111 | E246: 122310.8588 | F246: 9.656752377e-06 | G246: 0.775
B247: 0.009493257569 | C247: 0.78 | D247: 11.71858144 | E247: 122833.0554 | F247: 9.493257569e-06 | G247: 0.78
B248: 0.009327760983 | C248: 0.785 | D248: 11.7228977 | E248: 123364.3805 | F248: 9.327760983e-06 | G248: 0.785
B249: 0.009160256402 | C249: 0.79 | D249: 11.72727265 | E249: 123905.2764 | F249: 9.160256402e-06 | G249: 0.79
B250: 0.008990736981 | C250: 0.795 | D250: 11.73170926 | E250: 124456.2162 | F250: 8.990736981e-06 | G250: 0.795
B251: 0.008819195214 | C251: 0.8 | D251: 11.73621067 | E251: 125017.7074 | F251: 8.819195214e-06 | G251: 0.8
B252: 0.008645622905 | C252: 0.805 | D252: 11.74078026 | E252: 125590.2948 | F252: 8.645622905e-06 | G252: 0.805
B253: 0.008470011119 | C253: 0.81 | D253: 11.74542166 | E253: 126174.5648 | F253: 8.470011119e-06 | G253: 0.81
B254: 0.008292350151 | C254: 0.815 | D254: 11.75013877 | E254: 126771.1496 | F254: 8.292350151e-06 | G254: 0.815
B255: 0.008112629473 | C255: 0.82 | D255: 11.75493577 | E255: 127380.7322 | F255: 8.112629473e-06 | G255: 0.82
B256: 0.007930837684 | C256: 0.825 | D256: 11.7598172 | E256: 128004.0521 | F256: 7.930837684e-06 | G256: 0.825
B257: 0.007746962453 | C257: 0.83 | D257: 11.76478795 | E257: 128641.9118 | F257: 7.746962453e-06 | G257: 0.83
B258: 0.007560990457 | C258: 0.835 | D258: 11.76985332 | E258: 129295.1842 | F258: 7.560990457e-06 | G258: 0.835
B259: 0.007372907313 | C259: 0.84 | D259: 11.77501909 | E259: 129964.8213 | F259: 7.372907313e-06 | G259: 0.84
B260: 0.007182697495 | C260: 0.845 | D260: 11.78029154 | E260: 130651.8642 | F260: 7.182697495e-06 | G260: 0.845
B261: 0.006990344251 | C261: 0.85 | D261: 11.78567755 | E261: 131357.4545 | F261: 6.990344251e-06 | G261: 0.85
B262: 0.006795829504 | C262: 0.855 | D262: 11.79118464 | E262: 132082.848 | F262: 6.795829504e-06 | G262: 0.855
B263: 0.006599133743 | C263: 0.86 | D263: 11.79682111 | E263: 132829.4306 | F263: 6.599133743e-06 | G263: 0.86
B264: 0.006400235899 | C264: 0.865 | D264: 11.80259609 | E264: 133598.7369 | F264: 6.400235899e-06 | G264: 0.865
B265: 0.006199113203 | C265: 0.87 | D265: 11.8085197 | E265: 134392.4726 | F265: 6.199113203e-06 | G265: 0.87
B266: 0.005995741026 | C266: 0.875 | D266: 11.8146032 | E266: 135212.5413 | F266: 5.995741026e-06 | G266: 0.875
B267: 0.005790092699 | C267: 0.88 | D267: 11.82085915 | E267: 136061.0762 | F267: 5.790092699e-06 | G267: 0.88
B268: 0.005582139301 | C268: 0.885 | D268: 11.82730165 | E268: 136940.4792 | F268: 5.582139301e-06 | G268: 0.885
B269: 0.005371849414 | C269: 0.89 | D269: 11.83394657 | E269: 137853.4681 | F269: 5.371849414e-06 | G269: 0.89
B270: 0.005159188843 | C270: 0.895 | D270: 11.84081192 | E270: 138803.1353 | F270: 5.159188843e-06 | G270: 0.895
B271: 0.004944120288 | C271: 0.9 | D271: 11.84791818 | E271: 139793.0199 | F271: 4.944120288e-06 | G271: 0.9
B272: 0.004726602948 | C272: 0.905 | D272: 11.85528888 | E272: 140827.1992 | F272: 4.726602948e-06 | G272: 0.905
B273: 0.004506592066 | C273: 0.91 | D273: 11.86295118 | E273: 141910.4037 | F273: 4.506592066e-06 | G273: 0.91
B274: 0.004284038374 | C274: 0.915 | D274: 11.87093668 | E274: 143048.1662 | F274: 4.284038374e-06 | G274: 0.915
... 17 more rows

Sheet Diagnostics
A1: Slide II.21 | B1: ="Cum. ("&TEXT(C29,"0")&") vs. Cum. ("&TEXT(C29-1,"0")&")" -> Cum. (1) vs. Cum. (0) | J1: ="Incr. ("&TEXT(C29,"0")&") vs. Cum. ("&TEXT(C29-1,"0")&")" -> Incr. (1) vs. Cum. (0)
B23: ="Corr. = "&TEXT(L40,"0.000") -> Corr. = 0.695 | E23: ="P-Value = "&TEXT(L43,"0.000") -> P-Value = 0.115 | G23: ="Int. P-Value = "&TEXT(L56,"0.000") -> Int. P-Value = 0.626 | J23: ="Corr. = "&TEXT(L53,"0.000") -> Corr. = -0.117 | O23: ="P-Value = "&TEXT(L56,"0.000") -> P-Value = 0.626
B29: Column: | C29: 1 | E29: Delta: | F29: 1
B31: Regression Calculations for X-Y Plots
B32: Ratio Only Model: Y = βX + ε
C33: X | D33: Y | E33: Rows | F33: Weights | G33: X' | H33: Y' | K33: Regression without Intercept | O33: Regression with Intercept
B34: ='Mack Calc & Last Ex'!A5 -> 1 | C34: =OFFSET('Mack Calc & Last Ex'!$A$5,$B34-'Mack Calc & Last Ex'!$A$5,$C$29) -> 5012 | D34: =OFFSET('Mack Calc & Last Ex'!$A$5,$B34-'Mack Calc & Last Ex'!$A$5,$C$29+1) -> 8269 | E34: 1 | F34: =C34^($F$29/2) -> 70.79548008 | G34: =C34/F34 -> 70.79548008 | H34: =D34/F34 -> 116.801242 | K34: =LINEST(RegressY12Values,RegressX12Values,FALSE,TRUE) -> 2.999358651 | L34: 0 | O34: =LINEST(RegressY12Values,RegressX12Values,TRUE,TRUE) -> -3.418698084 | P34: 347.6776464 | T34: 0 | U34: 0 | V34: 0 | W34: =$L$34+(T34*$K$34) -> 0 | X34: =$L$47+(U34*$K$47) -> 4329.205802
B35: =IF(B34="","",IF(B34+1>'Mack Calc & Last Ex'!$A$5+10-$C$29-1,"",B34+1)) -> 2 | C35: =IF(B35="","",OFFSET('Mack Calc & Last Ex'!$A$5,$B35-'Mack Calc & Last Ex'!$A$5,$C$29)) -> 106 | D35: =IF(C35="","",OFFSET('Mack Calc & Last Ex'!$A$5,$B35-'Mack Calc & Last Ex'!$A$5,$C$29+1)) -> 4285 | E35: =IF(B35="","",1) -> 1 | F35: =IF(B35="","",C35^($F$29/2)) -> 10.29563014 | G35: =IF(B35="","",C35/F35) -> 10.29563014 | H35: =IF(B35="","",D35/F35) -> 416.195992 | K35: 1.130203277 | O35: 1.137764234 | P35: 56.03352488 | T35: =MIN(10^T38+TRUNC(T37*10^-T38,0)*10^T38,V35/K34) -> 4000.855314 | U35: =10^T38+TRUNC(T37*10^-T38,0)*10^T38 -> 5700 | V35: =10^U38+TRUNC(U37*10^-U38,0)*10^U38 -> 12000 | W35: =$L$34+(T35*$K$34) -> 12000 | X35: =$L$47+(U35*($K$47+1)) -> 11251.54958
B36: =IF(B35="","",IF(B35+1>'Mack Calc & Last Ex'!$A$5+10-$C$29-1,"",B35+1)) -> 3 | C36: =IF(B36="","",OFFSET('Mack Calc & Last Ex'!$A$5,$B36-'Mack Calc & Last Ex'!$A$5,$C$29)) -> 3410 | D36: =IF(C36="","",OFFSET('Mack Calc & Last Ex'!$A$5,$B36-'Mack Calc & Last Ex'!$A$5,$C$29+1)) -> 8992 | E36: =IF(B36="","",1) -> 1 | F36: =IF(B36="","",C36^($F$29/2)) -> 58.39520528 | G36: =IF(B36="","",C36/F36) -> 58.39520528 | H36: =IF(B36="","",D36/F36) -> 153.9852451 | K36: 0.4681831514 | L36: 166.9834704 | O36: 0.56327867 | P36: 70.01870596
B37: =IF(B36="","",IF(B36+1>'Mack Calc & Last Ex'!$A$5+10-$C$29-1,"",B36+1)) -> 4 | C37: =IF(B37="","",OFFSET('Mack Calc & Last Ex'!$A$5,$B37-'Mack Calc & Last Ex'!$A$5,$C$29)) -> 5655 | D37: =IF(C37="","",OFFSET('Mack Calc & Last Ex'!$A$5,$B37-'Mack Calc & Last Ex'!$A$5,$C$29+1)) -> 11555 | E37: 1 | F37: 75.19973404 | G37: 75.19973404 | H37: 153.6574583 | K37: 7.042772755 | L37: 8 | O37: 9.028527849 | P37: 7 | T37: =MAX(C34:C42) -> 5655 | U37: =MAX(D34:D42) -> 11555
B38: =IF(B37="","",IF(B37+1>'Mack Calc & Last Ex'!$A$5+10-$C$29-1,"",B37+1)) -> 5 | C38: =IF(B38="","",OFFSET('Mack Calc & Last Ex'!$A$5,$B38-'Mack Calc & Last Ex'!$A$5,$C$29)) -> 1092 | D38: =IF(C38="","",OFFSET('Mack Calc & Last Ex'!$A$5,$B38-'Mack Calc & Last Ex'!$A$5,$C$29+1)) -> 9565 | E38: 1 | F38: 33.04542328 | G38: 33.04542328 | H38: 289.4500675 | K38: 196377.009 | L38: 223067.8352 | O38: 44263.43384 | P38: 34318.33429 | T38: =VALUE(RIGHT(TEXT(T37,"0.0E+0"),1))-1 -> 2 | U38: =VALUE(RIGHT(TEXT(U37,"0.0E+0"),1))-1 -> 3
B39: =IF(B38="","",IF(B38+1>'Mack Calc & Last Ex'!$A$5+10-$C$29-1,"",B38+1)) -> 6 | C39: =IF(B39="","",OFFSET('Mack Calc & Last Ex'!$A$5,$B39-'Mack Calc & Last Ex'!$A$5,$C$29)) -> 1513 | D39: =IF(C39="","",OFFSET('Mack Calc & Last Ex'!$A$5,$B39-'Mack Calc & Last Ex'!$A$5,$C$29+1)) -> 6445 | E39: 1 | F39: 38.89730068 | G39: 38.89730068 | H39: 165.6927316 | L39: Slope | M39: Intercept | P39: Slope | Q39: Intercept
B40: =IF(B39="","",IF(B39+1>'Mack Calc & Last Ex'!$A$5+10-$C$29-1,"",B39+1)) -> 7 | C40: =IF(B40="","",OFFSET('Mack Calc & Last Ex'!$A$5,$B40-'Mack Calc & Last Ex'!$A$5,$C$29)) -> 557 | D40: =IF(C40="","",OFFSET('Mack Calc & Last Ex'!$A$5,$B40-'Mack Calc & Last Ex'!$A$5,$C$29+1)) -> 4020 | E40: 1 | F40: 23.60084744 | G40: 23.60084744 | H40: 170.3328666 | K40: Corr: | L40: =CORREL(RegressY1Values,RegressX1Values) -> 0.6948206999 | O40: Corr: | P40: =CORREL(RegressY1Values,RegressX1Values) -> 0.6948206999
B41: =IF(B40="","",IF(B40+1>'Mack Calc & Last Ex'!$A$5+10-$C$29-1,"",B40+1)) -> 8 | C41: =IF(B41="","",OFFSET('Mack Calc & Last Ex'!$A$5,$B41-'Mack Calc & Last Ex'!$A$5,$C$29)) -> 1351 | D41: =IF(C41="","",OFFSET('Mack Calc & Last Ex'!$A$5,$B41-'Mack Calc & Last Ex'!$A$5,$C$29+1)) -> 6947 | E41: 1 | F41: 36.7559519 | G41: 36.7559519 | H41: 189.0034033 | K41: SE | L41: =K35 -> 1.130203277 | M41: =L35 ->  | O41: SE | P41: =O35 -> 1.137764234 | Q41: =P35 -> 56.03352488
B42: =IF(B41="","",IF(B41+1>'Mack Calc & Last Ex'!$A$5+10-$C$29-1,"",B41+1)) -> 9 | C42: =IF(B42="","",OFFSET('Mack Calc & Last Ex'!$A$5,$B42-'Mack Calc & Last Ex'!$A$5,$C$29)) -> 3133 | D42: =IF(C42="","",OFFSET('Mack Calc & Last Ex'!$A$5,$B42-'Mack Calc & Last Ex'!$A$5,$C$29+1)) -> 5395 | E42: 1 | F42: 55.97320788 | G42: 55.97320788 | H42: 96.38539946 | K42: t-Ratio | L42: =(K34-1)/L41 -> 1.769025707 | M42: =(L34-1)/M41 ->  | O42: t-Ratio | P42: =(O34-1)/P41 -> -3.883667592 | Q42: =P34/Q41 -> 6.204814835
K43: P-Value | L43: =TDIST(ABS(L42),L37,2) -> 0.1148565615 | M43: =TDIST(ABS(M42),L37,2) ->  | O43: P-Value | P43: =TDIST(ABS(P42),P37,2) -> 0.006024402294 | Q43: =TDIST(ABS(Q42),P37,2) -> 0.0004431713361
B45: Ratio + Intercept Model: Y = α + βX + ε
C46: I | D46: X | E46: Y | F46: Y - X | G46: I' | H46: X' | I46: Y' - X' | K46: Regression with Intercept | O46: Regression with Intercept | U46: Scale Range
B47: ='Mack Calc & Last Ex'!A5 -> 1 | C47: 1 | D47: =OFFSET('Mack Calc & Last Ex'!$A$5,$B47-'Mack Calc & Last Ex'!$A$5,$C$29) -> 5012 | E47: =OFFSET('Mack Calc & Last Ex'!$A$5,$B47-'Mack Calc & Last Ex'!$A$5,$C$29+1) -> 8269 | F47: =E47-D47 -> 3257 | G47: =C47/F34 -> 0.01412519555 | H47: =D47/F34 -> 70.79548008 | I47: =(E47-D47)/F34 -> 46.0057619 | K47: =LINEST(RegressY22Values,RegressX22Values,FALSE,TRUE) -> 0.2144462772 | L47: 4329.205802 | O47: =LINEST(RegressY2Values,RegressX1Values,TRUE,TRUE) -> -0.1088620731 | P47: 5113.372244 | U47: =IF(U50<0,ROUNDUP(U50,-U54),ROUNDDOWN(U50,-U54)) -> 1 | V47: =IF(V50<0,ROUNDUP(V50,-V54),ROUNDDOWN(V50,-V54)) -> 100
B48: =IF(B47="","",IF(B47+1>'Mack Calc & Last Ex'!$A$5+10-$C$29-1,"",B47+1)) -> 2 | C48: =IF(B48="","",1) -> 1 | D48: =IF(B48="","",OFFSET('Mack Calc & Last Ex'!$A$5,$B48-'Mack Calc & Last Ex'!$A$5,$C$29)) -> 106 | E48: =IF(C48="","",OFFSET('Mack Calc & Last Ex'!$A$5,$B48-'Mack Calc & Last Ex'!$A$5,$C$29+1)) -> 4285 | F48: =IF(B48="","",E48-D48) -> 4179 | G48: =IF(B48="","",C48/F35) -> 0.09712858624 | H48: =IF(B48="","",D48/F35) -> 10.29563014 | I48: =IF(B48="","",(E48-D48)/F35) -> 405.9003619 | K48: 0.4213074873 | L48: 516.308204 | O48: 0.3486282497 | P48: 1066.162195 | U48: =ROUNDUP(U52,-U54) -> 1 | V48: =ROUNDUP(V52,-V54) -> 5700
B49: =IF(B48="","",IF(B48+1>'Mack Calc & Last Ex'!$A$5+10-$C$29-1,"",B48+1)) -> 3 | C49: =IF(B49="","",1) -> 1 | D49: =IF(B49="","",OFFSET('Mack Calc & Last Ex'!$A$5,$B49-'Mack Calc & Last Ex'!$A$5,$C$29)) -> 3410 | E49: =IF(C49="","",OFFSET('Mack Calc & Last Ex'!$A$5,$B49-'Mack Calc & Last Ex'!$A$5,$C$29+1)) -> 8992 | F49: =IF(B49="","",E49-D49) -> 5582 | G49: 0.01712469363 | H49: 58.39520528 | I49: 95.59003985 | K49: 0.934912803 | L49: 53.71667676 | O49: 0.0137379625 | P49: 1948.15045
B50: =IF(B49="","",IF(B49+1>'Mack Calc & Last Ex'!$A$5+10-$C$29-1,"",B49+1)) -> 4 | C50: 1 | D50: =IF(B50="","",OFFSET('Mack Calc & Last Ex'!$A$5,$B50-'Mack Calc & Last Ex'!$A$5,$C$29)) -> 5655 | E50: =IF(C50="","",OFFSET('Mack Calc & Last Ex'!$A$5,$B50-'Mack Calc & Last Ex'!$A$5,$C$29+1)) -> 11555 | F50: 5900 | G50: 0.01329791937 | H50: 75.19973404 | I50: 78.45772429 | K50: 50.27401639 | L50: 7 | O50: 0.09750526114 | P50: 7 | U50: =MIN(C47:C55) -> 1 | V50: =MIN(D47:D55) -> 106
B51: =IF(B50="","",IF(B50+1>'Mack Calc & Last Ex'!$A$5+10-$C$29-1,"",B50+1)) -> 5 | C51: 1 | D51: =IF(B51="","",OFFSET('Mack Calc & Last Ex'!$A$5,$B51-'Mack Calc & Last Ex'!$A$5,$C$29)) -> 1092 | E51: =IF(C51="","",OFFSET('Mack Calc & Last Ex'!$A$5,$B51-'Mack Calc & Last Ex'!$A$5,$C$29+1)) -> 9565 | F51: 8473 | G51: 0.03026137663 | H51: 33.04542328 | I51: 256.4046442 | K51: 290129.4746 | L51: 20198.36953 | O51: 370060.7598 | P51: 26567031.24 | U51: =VALUE(RIGHT(TEXT(U50,"0.0E+0"),1))-1 -> -1 | V51: =VALUE(RIGHT(TEXT(V50,"0.0E+0"),1))-1 -> 1
B52: =IF(B51="","",IF(B51+1>'Mack Calc & Last Ex'!$A$5+10-$C$29-1,"",B51+1)) -> 6 | C52: 1 | D52: =IF(B52="","",OFFSET('Mack Calc & Last Ex'!$A$5,$B52-'Mack Calc & Last Ex'!$A$5,$C$29)) -> 1513 | E52: =IF(C52="","",OFFSET('Mack Calc & Last Ex'!$A$5,$B52-'Mack Calc & Last Ex'!$A$5,$C$29+1)) -> 6445 | F52: 4932 | G52: 0.02570872484 | H52: 38.89730068 | I52: 126.7954309 | L52: Slope | M52: Intercept | P52: Slope | Q52: Intercept | U52: =MAX(C47:C55) -> 1 | V52: =MAX(D47:D55) -> 5655
B53: =IF(B52="","",IF(B52+1>'Mack Calc & Last Ex'!$A$5+10-$C$29-1,"",B52+1)) -> 7 | C53: 1 | D53: =IF(B53="","",OFFSET('Mack Calc & Last Ex'!$A$5,$B53-'Mack Calc & Last Ex'!$A$5,$C$29)) -> 557 | E53: =IF(C53="","",OFFSET('Mack Calc & Last Ex'!$A$5,$B53-'Mack Calc & Last Ex'!$A$5,$C$29+1)) -> 4020 | F53: 3463 | G53: 0.04237135986 | H53: 23.60084744 | I53: 146.7320192 | K53: Corr: | L53: =CORREL(RegressY2Values,RegressX2Values) -> -0.1172090547 | O53: Corr: | P53: =CORREL(RegressY2Values,RegressX2Values) -> -0.1172090547 | U53: =VALUE(RIGHT(TEXT(U52,"0.0E+0"),1))-1 -> -1 | V53: =VALUE(RIGHT(TEXT(V52,"0.0E+0"),1))-1 -> 2
B54: =IF(B53="","",IF(B53+1>'Mack Calc & Last Ex'!$A$5+10-$C$29-1,"",B53+1)) -> 8 | C54: 1 | D54: =IF(B54="","",OFFSET('Mack Calc & Last Ex'!$A$5,$B54-'Mack Calc & Last Ex'!$A$5,$C$29)) -> 1351 | E54: =IF(C54="","",OFFSET('Mack Calc & Last Ex'!$A$5,$B54-'Mack Calc & Last Ex'!$A$5,$C$29+1)) -> 6947 | F54: 5596 | G54: 0.02720647809 | H54: 36.7559519 | I54: 152.2474514 | K54: SE | L54: =K48 -> 0.4213074873 | M54: =L48 -> 516.308204 | O54: SE | P54: =O48 -> 0.3486282497 | Q54: =P48 -> 1066.162195 | U54: =MAX(U51,U53) -> -1 | V54: =MAX(V51,V53) -> 2
B55: =IF(B54="","",IF(B54+1>'Mack Calc & Last Ex'!$A$5+10-$C$29-1,"",B54+1)) -> 9 | C55: 1 | D55: =IF(B55="","",OFFSET('Mack Calc & Last Ex'!$A$5,$B55-'Mack Calc & Last Ex'!$A$5,$C$29)) -> 3133 | E55: =IF(C55="","",OFFSET('Mack Calc & Last Ex'!$A$5,$B55-'Mack Calc & Last Ex'!$A$5,$C$29+1)) -> 5395 | F55: 2262 | G55: 0.01786569035 | H55: 55.97320788 | I55: 40.41219158 | K55: t-Ratio | L55: =K47/L54 -> 0.5090018186 | M55: =(L47-1)/M54 -> 8.382988627 | O55: t-Ratio | P55: =O47/P54 -> -0.3122583244 | Q55: =(P47-1)/Q54 -> 4.795116792
K56: P-Value | L56: =TDIST(ABS(L55),L50,2) -> 0.6263986167 | M56: =TDIST(ABS(M55),L50,2) -> 6.754006667e-05 | O56: P-Value | P56: =TDIST(ABS(P55),P50,2) -> 0.7639403865 | Q56: =TDIST(ABS(Q55),P50,2) -> 0.001977408424
K57: C.o.V. | L57: =ABS(K48/K47) -> 1.964629523 | M57: =ABS(L48/L47) -> 0.1192616447 | O57: C.o.V. | P57: =ABS(O48/O47) -> 3.202476674 | Q57: =ABS(P48/P47) -> 0.2085047096
A68: Slide II.25
B89: Ratio Only Model: Y = βX + ε
C90: X | D90: Y | E90: Forecast | F90: Residuals | G90: Standardized | H90: Weights | I90: Weighted
B91: ='Mack Calc & Last Ex'!A5 -> 1 | C91: =OFFSET('Mack Calc & Last Ex'!$A$5,$B91-'Mack Calc & Last Ex'!$A$5,$C$29) -> 5012 | D91: =OFFSET('Mack Calc & Last Ex'!$A$5,$B91-'Mack Calc & Last Ex'!$A$5,$C$29+1) -> 8269 | E91: =C91*$K$34 -> 15032.78556 | F91: =D91-E91 -> -6763.78556 | G91: =F91/$L$36 -> -40.50571918 | H91: =C91^($F$29/2) -> 70.79548008 | I91: =G91/H91 -> -0.5721512042
B92: =IF(B91="","",IF(B91+1>'Mack Calc & Last Ex'!$A$5+10-$C$29-1,"",B91+1)) -> 2 | C92: =IF(B92="","",OFFSET('Mack Calc & Last Ex'!$A$5,$B92-'Mack Calc & Last Ex'!$A$5,$C$29)) -> 106 | D92: =IF(C92="","",OFFSET('Mack Calc & Last Ex'!$A$5,$B92-'Mack Calc & Last Ex'!$A$5,$C$29+1)) -> 4285 | E92: =IF(B92="","",C92*$K$34) -> 317.932017 | F92: =IF(B92="","",D92-E92) -> 3967.067983 | G92: =IF(B92="","",F92/$L$36) -> 23.75724958 | H92: =IF(B92="","",C92^($F$29/2)) -> 10.29563014 | I92: =IF(B92="","",G92/H92) -> 2.307508065
B93: =IF(B92="","",IF(B92+1>'Mack Calc & Last Ex'!$A$5+10-$C$29-1,"",B92+1)) -> 3 | C93: =IF(B93="","",OFFSET('Mack Calc & Last Ex'!$A$5,$B93-'Mack Calc & Last Ex'!$A$5,$C$29)) -> 3410 | D93: =IF(C93="","",OFFSET('Mack Calc & Last Ex'!$A$5,$B93-'Mack Calc & Last Ex'!$A$5,$C$29+1)) -> 8992 | E93: =IF(B93="","",C93*$K$34) -> 10227.813 | F93: =IF(B93="","",D93-E93) -> -1235.813001 | G93: =IF(B93="","",F93/$L$36) -> -7.400810379 | H93: =IF(B93="","",C93^($F$29/2)) -> 58.39520528 | I93: =IF(B93="","",G93/H93) -> -0.1267366104
B94: =IF(B93="","",IF(B93+1>'Mack Calc & Last Ex'!$A$5+10-$C$29-1,"",B93+1)) -> 4 | C94: =IF(B94="","",OFFSET('Mack Calc & Last Ex'!$A$5,$B94-'Mack Calc & Last Ex'!$A$5,$C$29)) -> 5655 | D94: =IF(C94="","",OFFSET('Mack Calc & Last Ex'!$A$5,$B94-'Mack Calc & Last Ex'!$A$5,$C$29+1)) -> 11555 | E94: 16961.37317 | F94: -5406.373173 | G94: =IF(B94="","",F94/$L$36) -> -32.37669669 | H94: 75.19973404 | I94: -0.430542702
B95: =IF(B94="","",IF(B94+1>'Mack Calc & Last Ex'!$A$5+10-$C$29-1,"",B94+1)) -> 5 | C95: =IF(B95="","",OFFSET('Mack Calc & Last Ex'!$A$5,$B95-'Mack Calc & Last Ex'!$A$5,$C$29)) -> 1092 | D95: =IF(C95="","",OFFSET('Mack Calc & Last Ex'!$A$5,$B95-'Mack Calc & Last Ex'!$A$5,$C$29+1)) -> 9565 | E95: 3275.299647 | F95: 6289.700353 | G95: =IF(B95="","",F95/$L$36) -> 37.66660459 | H95: 33.04542328 | I95: 1.139843308
B96: =IF(B95="","",IF(B95+1>'Mack Calc & Last Ex'!$A$5+10-$C$29-1,"",B95+1)) -> 6 | C96: =IF(B96="","",OFFSET('Mack Calc & Last Ex'!$A$5,$B96-'Mack Calc & Last Ex'!$A$5,$C$29)) -> 1513 | D96: =IF(C96="","",OFFSET('Mack Calc & Last Ex'!$A$5,$B96-'Mack Calc & Last Ex'!$A$5,$C$29+1)) -> 6445 | E96: 4538.029639 | F96: 1906.970361 | G96: =IF(B96="","",F96/$L$36) -> 11.42011455 | H96: 38.89730068 | I96: 0.2935965826
B97: =IF(B96="","",IF(B96+1>'Mack Calc & Last Ex'!$A$5+10-$C$29-1,"",B96+1)) -> 7 | C97: =IF(B97="","",OFFSET('Mack Calc & Last Ex'!$A$5,$B97-'Mack Calc & Last Ex'!$A$5,$C$29)) -> 557 | D97: =IF(C97="","",OFFSET('Mack Calc & Last Ex'!$A$5,$B97-'Mack Calc & Last Ex'!$A$5,$C$29+1)) -> 4020 | E97: 1670.642769 | F97: 2349.357231 | G97: =IF(B97="","",F97/$L$36) -> 14.06939995 | H97: 23.60084744 | I97: 0.5961396085
B98: =IF(B97="","",IF(B97+1>'Mack Calc & Last Ex'!$A$5+10-$C$29-1,"",B97+1)) -> 8 | C98: =IF(B98="","",OFFSET('Mack Calc & Last Ex'!$A$5,$B98-'Mack Calc & Last Ex'!$A$5,$C$29)) -> 1351 | D98: =IF(C98="","",OFFSET('Mack Calc & Last Ex'!$A$5,$B98-'Mack Calc & Last Ex'!$A$5,$C$29+1)) -> 6947 | E98: 4052.133538 | F98: 2894.866462 | G98: =IF(B98="","",F98/$L$36) -> 17.33624565 | H98: 36.7559519 | I98: 0.4716581873
B99: =IF(B98="","",IF(B98+1>'Mack Calc & Last Ex'!$A$5+10-$C$29-1,"",B98+1)) -> 9 | C99: =IF(B99="","",OFFSET('Mack Calc & Last Ex'!$A$5,$B99-'Mack Calc & Last Ex'!$A$5,$C$29)) -> 3133 | D99: =IF(C99="","",OFFSET('Mack Calc & Last Ex'!$A$5,$B99-'Mack Calc & Last Ex'!$A$5,$C$29+1)) -> 5395 | E99: 9396.990655 | F99: -4001.990655 | G99: =IF(B99="","",F99/$L$36) -> -23.96638808 | H99: 55.97320788 | I99: -0.4281760683
